Workbook

Sheet 1.全市一般公共预算收入预算表
A1: 2022年攀枝花市地方一般公共预算收入预算表
D2: 单位：万元，%
A3: 预算科目 | B3: 上年完成数 | C3: 预算数 | D3: 为上年完成数
A4: 一、税收收入 | B4: 509,020 | C4: 583,317 | D4: 114.6
A5: 增值税 | B5: 209,974 | C5: 257,328 | D5: 122.6
A6: 消费税
A7: 企业所得税 | B7: 67,612 | C7: 74,233 | D7: 109.8
A8: 企业所得税退税
A9: 个人所得税(款) | B9: 14,004 | C9: 14,647 | D9: 104.6
A10: 资源税 | B10: 44,041 | C10: 48,925 | D10: 111.1
A11: 城市维护建设税 | B11: 35,685 | C11: 36,515 | D11: 102.3
A12: 房产税 | B12: 18,297 | C12: 19,389 | D12: 106.0
A13: 印花税 | B13: 19,232 | C13: 17,032 | D13: 88.6
A14: 城镇土地使用税 | B14: 27,629 | C14: 37,716 | D14: 136.5
A15: 土地增值税 | B15: 11,559 | C15: 14,005 | D15: 121.2
A16: 车船税(款) | B16: 7,742 | C16: 7,788 | D16: 100.6
A17: 耕地占用税(款) | B17: 11,415 | C17: 11,813 | D17: 103.5
A18: 契税(款) | B18: 29,220 | C18: 31,703 | D18: 108.5
A19: 烟叶税(款) | B19: 8,488 | C19: 7,779 | D19: 91.6
A20: 环境保护税(款) | B20: 4,106 | C20: 4,444 | D20: 108.2
A21: 其他税收收入 | B21: 16 | D21: 0.0
A22: 二、非税收入 | B22: 389,508 | C22: 319,528 | D22: 82.0
A23: 专项收入 | B23: 33,597 | C23: 38,878 | D23: 115.7
A24: 行政事业性收费收入 | B24: 24,966 | C24: 24,375 | D24: 97.6
A25: 罚没收入 | B25: 40,897 | C25: 46,231 | D25: 113.0
A26: 国有资本经营收入 | B26: 30,190 | D26: 0.0
A27: 国有资源(资产)有偿使用收入 | B27: 229,185 | C27: 165,005 | D27: 72.0
A28: 捐赠收入 | B28: 82 | C28: 40 | D28: 48.8
A29: 政府住房基金收入 | B29: 3,738 | C29: 4,100 | D29: 109.7
A30: 其他收入(款) | B30: 26,853 | C30: 40,899 | D30: 152.3
A31: 一般公共预算收入 | B31: 898,528 | C31: 902,845 | D31: 100.5

Sheet 2.全市一般公共预算支出预算表
A1: 2022年攀枝花市一般公共预算支出执行表
B2: 单位：万元，%
A3: 预算科目 | B3: 上年完成数 | C3: 预算数 | D3: 为上年完成数
A4: 一、一般公共服务支出 | B4: 155,720 | C4: 154,361 | D4: 99.1
A5: 二、外交支出 | B5: 0 | C5: 0
A6: 三、国防支出 | B6: 768 | C6: 801 | D6: 104.3
A7: 四、公共安全支出 | B7: 99,388 | C7: 93,387 | D7: 94.0
A8: 五、教育支出 | B8: 266,884 | C8: 260,711 | D8: 97.7
A9: 六、科学技术支出 | B9: 6,780 | C9: 4,632 | D9: 68.3
A10: 七、文化旅游体育与传媒支出 | B10: 20,872 | C10: 18,302 | D10: 87.7
A11: 八、社会保障和就业支出 | B11: 233,317 | C11: 173,876 | D11: 74.5
A12: 九、卫生健康支出 | B12: 326,103 | C12: 264,069 | D12: 81.0
A13: 十、节能环保支出 | B13: 30,903 | C13: 6,001 | D13: 19.4
A14: 十一、城乡社区支出 | B14: 91,448 | C14: 38,074 | D14: 41.6
A15: 十二、农林水支出 | B15: 177,954 | C15: 84,199 | D15: 47.3
A16: 十三、交通运输支出 | B16: 75,176 | C16: 30,969 | D16: 41.2
A17: 十四、资源勘探工业信息等支出 | B17: 27,617 | C17: 4,653 | D17: 16.7
A18: 十五、商业服务业等支出 | B18: 4,195 | C18: 837 | D18: 20.0
A19: 十六、金融支出 | B19: 2,034 | C19: 334 | D19: 16.4
A20: 十七、自然资源海洋气象等支出 | B20: 9,801 | C20: 8,478 | D20: 86.5
A21: 十八、住房保障支出 | B21: 111,778 | C21: 60,710 | D21: 54.3
A22: 十九、粮油物资储备支出 | B22: 709 | C22: 714 | D22: 100.7
A23: 二十、灾害防治及应急管理支出 | B23: 19,092 | C23: 7,986 | D23: 41.8
A24: 二十一、预备费 | C24: 14,250
A25: 二十二、其他支出(类) | B25: 4,183 | C25: 13,829 | D25: 330.6
A26: 二十三、债务付息支出 | B26: 51,663 | C26: 42,437 | D26: 82.1
A27: 二十四、债务发行费用支出 | B27: 159 | C27: 147 | D27: 92.5
A28: 一般公共预算支出 | B28: 1,716,544 | C28: 1,283,755 | D28: 74.8

Sheet 3.全市一般公用预算收支执行平衡表
A1: 2022年攀枝花市一般公共预算收支平衡表
A2: 单位：万元
A3: 项目 | B3: 预算数 | C3: 项目 | D3: 预算数
A4: 一般公共预算收入 | B4: 902,845 | C4: 一般公共预算支出 | D4: 1,283,755
A5: 上级补助收入 | B5: 298,085 | C5: 补助下级支出 | D5: 0
A6: 返还性收入 | B6: 28,611 | C6: 返还性支出 | D6: 0
A7: 所得税基数返还收入 | B7: 9,437 | C7: 所得税基数返还支出 | D7: 0
A8: 成品油税费改革税收返还收入 | B8: 21,087 | C8: 成品油税费改革税收返还支出 | D8: 0
A9: 增值税税收返还收入 | B9: 38,251 | C9: 增值税税收返还支出 | D9: 0
A10: 消费税税收返还收入 | B10: 966 | C10: 消费税税收返还支出 | D10: 0
A11: 增值税“五五分享”税收返还收入 | B11: -28,149 | C11: 增值税“五五分享”税收返还支出 | D11: 0
A12: 其他返还性收入 | B12: -12,981 | C12: 其他返还性支出 | D12: 0
A13: 一般性转移支付收入 | B13: 268,769 | C13: 一般性转移支付支出 | D13: 0
A14: 体制补助收入 | C14: 体制补助支出 | D14: 0
A15: 均衡性转移支付收入 | B15: 154,651 | C15: 均衡性转移支付支出 | D15: 0
A16: 县级基本财力保障机制奖补资金收入 | B16: 15,842 | C16: 县级基本财力保障机制奖补资金支出 | D16: 0
A17: 结算补助收入 | B17: 12,986 | C17: 结算补助支出 | D17: 0
A18: 资源枯竭型城市转移支付补助收入 | C18: 资源枯竭型城市转移支付补助支出 | D18: 0
A19: 企业事业单位划转补助收入 | B19: 22,357 | C19: 企业事业单位划转补助支出 | D19: 0
A20: 产粮(油)大县奖励资金收入 | B20: 0 | C20: 产粮(油)大县奖励资金支出 | D20: 0
A21: 重点生态功能区转移支付收入 | B21: 9,901 | C21: 重点生态功能区转移支付支出 | D21: 0
A22: 固定数额补助收入 | B22: 53,032 | C22: 固定数额补助支出 | D22: 0
A23: 革命老区转移支付收入 | B23: 0 | C23: 革命老区转移支付支出 | D23: 0
A24: 民族地区转移支付收入 | B24: 0 | C24: 民族地区转移支付支出 | D24: 0
A25: 边境地区转移支付收入 | B25: 0 | C25: 边境地区转移支付支出 | D25: 0
A26: 贫困地区转移支付收入 | C26: 贫困地区转移支付支出 | D26: 0
A27: 一般公共服务共同财政事权转移支付收入 | C27: 一般公共服务共同财政事权转移支付支出 | D27: 0
A28: 外交共同财政事权转移支付收入 | C28: 外交共同财政事权转移支付支出 | D28: 0
A29: 国防共同财政事权转移支付收入 | C29: 国防共同财政事权转移支付支出 | D29: 0
A30: 公共安全共同财政事权转移支付收入 | C30: 公共安全共同财政事权转移支付支出 | D30: 0
A31: 教育共同财政事权转移支付收入 | C31: 教育共同财政事权转移支付支出 | D31: 0
A32: 科学技术共同财政事权转移支付收入 | C32: 科学技术共同财政事权转移支付支出 | D32: 0
A33: 文化旅游体育与传媒共同财政事权转移支付收入 | C33: 文化旅游体育与传媒共同财政事权转移支付支出 | D33: 0
A34: 社会保障和就业共同财政事权转移支付收入 | C34: 社会保障和就业共同财政事权转移支付支出 | D34: 0
A35: 医疗卫生共同财政事权转移支付收入 | C35: 医疗卫生共同财政事权转移支付支出 | D35: 0
A36: 节能环保共同财政事权转移支付收入 | C36: 节能环保共同财政事权转移支付支出 | D36: 0
A37: 城乡社区共同财政事权转移支付收入 | C37: 城乡社区共同财政事权转移支付支出 | D37: 0
A38: 农林水共同财政事权转移支付收入 | C38: 农林水共同财政事权转移支付支出 | D38: 0
A39: 交通运输共同财政事权转移支付收入 | C39: 交通运输共同财政事权转移支付支出 | D39: 0
A40: 资源勘探信息等共同财政事权转移支付收入 | C40: 资源勘探信息等共同财政事权转移支付支出 | D40: 0
A41: 商业服务业等共同财政事权转移支付收入 | C41: 商业服务业等共同财政事权转移支付支出 | D41: 0
A42: 金融共同财政事权转移支付收入 | C42: 金融共同财政事权转移支付支出 | D42: 0
A43: 自然资源海洋气象等共同财政事权转移支付收入 | C43: 自然资源海洋气象等共同财政事权转移支付支出 | D43: 0
A44: 住房保障共同财政事权转移支付收入 | C44: 住房保障共同财政事权转移支付支出 | D44: 0
A45: 粮油物资储备共同财政事权转移支付收入 | C45: 粮油物资储备共同财政事权转移支付支出 | D45: 0
A46: 灾害防治及应急管理共同财政事权转移支付收入 | C46: 灾害防治及应急管理共同财政事权转移支付支出 | D46: 0
A47: 其他共同财政事权转移支付收入 | C47: 其他共同财政事权转移支付支出 | D47: 0
A48: 其他一般性转移支付收入 | C48: 其他一般性转移支付支出 | D48: 0
A49: 专项转移支付收入 | B49: 705 | C49: 专项转移支付支出 | D49: 0
A50: 下级上解收入 | C50: 上解上级支出 | D50: 116,043
A51: 体制上解收入 | B51: 0 | C51: 体制上解支出 | D51: 11
A52: 专项上解收入 | B52: 0 | C52: 专项上解支出 | D52: 116,032
A53: 上年结余 | B53: 10,028
A54: 调入资金 | B54: 212,322 | C54: 调出资金 | D54: 0
A55: 从政府性基金预算调入
A56: 从国有资本经营预算调入 | B56: 3,832
A57: 从其他资金调入 | B57: 208,490
A58: 债务收入 | B58: 0 | C58: 债务还本支出 | D58: 39,233
A59: 地方政府债务收入 | B59: 0 | C59: 地方政府一般债务还本支出 | D59: 39,233
A60: 一般债务收入 | B60: 0 | C60: 地方政府一般债券还本支出 | D60: 35,003
A61: 地方政府一般债券收入 | C61: 地方政府向外国政府借款还本支出 | D61: 4,000
A62: 地方政府向外国政府借款收入 | B62: 0 | C62: 地方政府向国际组织借款还本支出
A63: 地方政府向国际组织借款收入 | B63: 0 | C63: 地方政府其他一般债务还本支出 | D63: 230
A64: 地方政府其他一般债务收入 | B64: 0
A65: 债务转贷收入 | B65: 11,520 | C65: 债务转贷支出 | D65: 0
A66: 地方政府一般债务转贷收入 | B66: 11,520 | C66: 地方政府一般债券转贷支出 | D66: 0
A67: 地方政府一般债券转贷收入 | B67: 11,520 | C67: 地方政府向外国政府借款转贷支出 | D67: 0
A68: 地方政府向外国政府借款转贷收入 | B68: 0 | C68: 地方政府向国际组织借款转贷支出 | D68: 0
A69: 地方政府向国际组织借款转贷收入 | B69: 0 | C69: 地方政府其他一般债务转贷支出 | D69: 0
A70: 地方政府其他一般债务转贷收入 | B70: 0
A71: 动用预算稳定调节基金 | B71: 8,724 | C71: 安排预算稳定调节基金
A72: 接受其他地区援助收入 | B72: 0 | C72: 援助其他地区支出 | D72: 4,493
C73: 年终结余
C74: 减:结转下年的支出
C75: 净结余 | D75: 0
A76: 收 入 总 计 | B76: 1,443,524 | C76: 支 出 总 计 | D76: 1,443,524

Sheet 4.全市一般公共预算经济分类科目支出预算表
A1: 2022年攀枝花市一般公共预算经济分类科目支出预算表
B2: 单位:万元
A3: 预算科目 | B3: 预算数
A4: 机关工资福利支出 | B4: =SUM(B5:B8) -> 315,582
A5: 工资奖金津补贴 | B5: 224,165
A6: 社会保障缴费 | B6: 41,021
A7: 住房公积金 | B7: 23,654
A8: 其他工资福利支出 | B8: 26,742
A9: 机关商品和服务支出 | B9: =SUM(B10:B19) -> 252,336
A10: 办公经费 | B10: 25,421
A11: 会议费 | B11: 1,100
A12: 培训费 | B12: 600
A13: 专用材料购置费 | B13: 1,350
A14: 委托业务费 | B14: 24,502
A15: 公务接待费 | B15: 1,128
A16: 因公出国(境)费用
A17: 公务用车运行维护费 | B17: 3,641
A18: 维修(护)费 | B18: 1,997
A19: 其他商品和服务支出 | B19: =163417+29180 -> 192,597
A20: 机关资本性支出(一) | B20: =SUM(B21:B27) -> 39,062
A21: 房屋建筑物购建 | B21: 2,251
A22: 基础设施建设 | B22: =31025-6825 -> 24,200
A23: 公务用车购置 | B23: 890
A24: 土地征迁补偿和安置支出 | B24: 2,103
A25: 设备购置 | B25: 2,159
A26: 大型修缮 | B26: 634
A27: 其他资本性支出 | B27: 6,825
A28: 机关资本性支出(二) | B28: =SUM(B29:B34) -> 21,985
A29: 房屋建筑物购建 | B29: 2,905
A30: 基础设施建设 | B30: 3,755
A31: 公务用车购置 | B31: 47
A32: 设备购置 | B32: 47
A33: 大型修缮 | B33: 111
A34: 其他资本性支出 | B34: 15,120
A35: 对事业单位经常性补助 | B35: =SUM(B36:B38) -> 394,090
A36: 工资福利支出 | B36: 332,540
A37: 商品和服务支出 | B37: 56,000
A38: 其他对事业单位补助 | B38: 5,550
A39: 对事业单位资本性补助 | B39: =SUM(B40:B41) -> 12,800
A40: 资本性支出(一) | B40: 7,800
A41: 资本性支出(二) | B41: 5,000
A42: 对企业补助 | B42: =SUM(B43:B45) -> 20,050
A43: 费用补贴 | B43: 3,200
A44: 利息补贴 | B44: 850
A45: 其他对企业补助 | B45: 16,000
A46: 对企业资本性支出 | B46: =SUM(B47:B48) -> 38,450
A47: 对企业资本性支出(一)
A48: 对企业资本性支出(二) | B48: 38,450
A49: 对个人和家庭的补助 | B49: =SUM(B50:B54) -> 95,682
A50: 社会福利和救助 | B50: 38,652
A51: 助学金 | B51: 4,500
A52: 个人农业生产补贴 | B52: 2,120
A53: 离退休费 | B53: 25,000
A54: 其他对个人和家庭补助 | B54: 25,410
A55: 对社会保障基金补助 | B55: =SUM(B56:B57) -> 40,905
A56: 对社会保险基金补助 | B56: 40,905
A57: 补充全国社会保障基金
A58: 债务利息及费用支出 | B58: =SUM(B59:B62) -> 42,584
A59: 国内债务付息 | B59: 42,437
A60: 国外债务付息
A61: 国内债务发行费用 | B61: 147
A62: 国外债务发行费用
A63: 其他支出 | B63: =SUM(B64:B67) -> 13,829
A64: 赠与
A65: 国家赔偿费用支出
A66: 对民间非营利组织和群众性自治组织补贴 | B66: 1,350
A67: 其他支出 | B67: 12,479
A68: 一般公共预算支出 | B68: =B4+B9+B20+B28+B35+B39+B42+B46+B49+B55+B58+B63 -> 1,287,355

Sheet 5.市本级一般公共预算收入预算表
A1: 2022年攀枝花市市本级地方一般公共预算收入预算表
D2: 单位：万元，%
A3: 预算科目 | B3: 上年完成数 | C3: 预算数 | D3: 为上年完成数
A4: 一、税收收入 | B4: 166,414 | C4: 220,000 | D4: 132.2
A5: 增值税 | B5: 62,924 | C5: 100,300 | D5: 159.4
A6: 消费税
A7: 企业所得税 | B7: 19,229 | C7: 20,000 | D7: 104.0
A8: 企业所得税退税
A9: 个人所得税(款) | B9: 4,478 | C9: 5,000 | D9: 111.7
A10: 资源税 | B10: 12,918 | C10: 16,000 | D10: 123.9
A11: 城市维护建设税 | B11: 16,397 | C11: 15,500 | D11: 94.5
A12: 房产税 | B12: 6,899 | C12: 7,500 | D12: 108.7
A13: 印花税 | B13: 10,718 | C13: 10,000 | D13: 93.3
A14: 城镇土地使用税 | B14: 9,334 | C14: 19,000 | D14: 203.6
A15: 土地增值税 | B15: 9,643 | C15: 12,000 | D15: 124.4
A16: 车船税(款) | B16: 2,299 | C16: 2,400 | D16: 104.4
A17: 耕地占用税(款) | B17: 125
A18: 契税(款) | B18: 8,822 | C18: 9,500 | D18: 107.7
A19: 烟叶税(款)
A20: 环境保护税(款) | B20: 2,642 | C20: 2,800 | D20: 106.0
A21: 其他税收收入 | B21: -14
A22: 二、非税收入 | B22: 250,211 | C22: 213,500 | D22: 85.3
A23: 专项收入 | B23: 9,305 | C23: 12,000 | D23: 129.0
A24: 行政事业性收费收入 | B24: 16,970 | C24: 18,000 | D24: 106.1
A25: 罚没收入 | B25: 16,984 | C25: 26,000 | D25: 153.1
A26: 国有资本经营收入
A27: 国有资源(资产)有偿使用收入 | B27: 188,654 | C27: 133,500 | D27: 70.8
A28: 捐赠收入
A29: 政府住房基金收入 | B29: 3,500 | C29: 4,000 | D29: 114.3
A30: 其他收入(款) | B30: 14,798 | C30: 20,000 | D30: 135.2
A31: 一般公共预算收入 | B31: 416,625 | C31: 433,500 | D31: 104.1

Sheet 6.市本级一般公共预算支出预算表
A1: 2022年攀枝花市市本级一般公共预算支出预算表
D2: 单位：万元
A3: 预算科目 | B3: 上年完成数 | C3: 预算数 | D3: 为上年完成数
A4: 一般公共预算支出 | B4: 780,323 | C4: 662,150 | D4: 84.9
A5: 一般公共服务支出 | B5: 53,262 | C5: 49,526 | D5: 93.0
A6: 人大事务 | B6: 1,653 | C6: 1,753 | D6: 106.0
A7: 行政运行 | B7: 1,293 | C7: 1,283 | D7: 99.2
A8: 一般行政管理事务 | B8: 158 | C8: 150 | D8: 94.9
A9: 机关服务
A10: 人大会议 | B10: 100 | C10: 160 | D10: 160.0
A11: 人大立法 | B11: 15 | D11: 0.0
A12: 人大监督 | B12: 8 | D12: 0.0
A13: 人大代表履职能力提升
A14: 代表工作 | B14: 24 | C14: 100 | D14: 416.7
A15: 人大信访工作
A16: 事业运行 | B16: 55 | C16: 60 | D16: 109.1
A17: 其他人大事务支出
A18: 政协事务 | B18: 1,490 | C18: 1,714 | D18: 115.0
A19: 行政运行 | B19: 1,013 | C19: 1,207 | D19: 119.2
A20: 一般行政管理事务 | B20: 236 | C20: 200 | D20: 84.7
A21: 机关服务
A22: 政协会议 | B22: 101 | C22: 160 | D22: 158.4
A23: 委员视察 | B23: 101 | C23: 100 | D23: 99.0
A24: 参政议政 | B24: 2 | D24: 0.0
A25: 事业运行 | B25: 37 | C25: 47 | D25: 127.0
A26: 其他政协事务支出
A27: 政府办公厅(室)及相关机构事务 | B27: 9,277 | C27: 9,386 | D27: 101.2
A28: 行政运行 | B28: 5,178 | C28: 5,350 | D28: 103.3
A29: 一般行政管理事务 | B29: 2,298 | C29: 2,400 | D29: 104.4
A30: 机关服务
A31: 专项服务
A32: 专项业务及机关事务管理
A33: 政务公开审批
A34: 信访事务 | B34: 74 | D34: 0.0
A35: 参事事务
A36: 事业运行 | B36: 1,399 | C36: 1,550 | D36: 110.8
A37: 其他政府办公厅(室)及相关机构事务支出 | B37: 328 | C37: 86 | D37: 26.2
A38: 发展与改革事务 | B38: 2,086 | C38: 4,857 | D38: 232.8
A39: 行政运行 | B39: 1,596 | C39: 1,536 | D39: 96.2
A40: 一般行政管理事务 | B40: 31 | D40: 0.0
A41: 机关服务
A42: 战略规划与实施
A43: 日常经济运行调节
A44: 社会事业发展规划
A45: 经济体制改革研究
A46: 物价管理
A47: 事业运行 | B47: 289 | C47: 321 | D47: 111.0
A48: 其他发展与改革事务支出 | B48: 170 | C48: 3,000
A49: 统计信息事务 | B49: 1,095 | C49: 967 | D49: 88.3
A50: 行政运行 | B50: 839 | C50: 855 | D50: 101.9
A51: 一般行政管理事务 | B51: 12 | D51: 0.0
A52: 机关服务
A53: 信息事务
A54: 专项统计业务
A55: 统计管理
A56: 专项普查活动 | B56: 78 | D56: 0.0
A57: 统计抽样调查 | B57: 64 | D57: 0.0
A58: 事业运行 | B58: 102 | C58: 112 | D58: 110.0
A59: 其他统计信息事务支出
A60: 财政事务 | B60: 3,245 | C60: 2,742 | D60: 84.5
A61: 行政运行 | B61: 2,127 | C61: 2,031 | D61: 95.5
A62: 一般行政管理事务 | B62: 103 | D62: 0.0
A63: 机关服务
A64: 预算改革业务
A65: 财政国库业务
A66: 财政监察
A67: 信息化建设
A68: 财政委托业务支出 | B68: 9
A69: 事业运行 | B69: 253 | C69: 211 | D69: 83.5
A70: 其他财政事务支出 | B70: 753 | C70: 500 | D70: 66.4
A71: 税收事务 | B71: 3,267 | C71: 0
A72: 行政运行 | B72: 1,157
A73: 一般行政管理事务 | B73: 60
A74: 机关服务
A75: 信息化建设
A76: 税收业务
A77: 事业运行
A78: 其他税收事务支出 | B78: 2,050
A79: 审计事务 | B79: 1,465 | C79: 1,121 | D79: 76.5
A80: 行政运行 | B80: 1,065 | C80: 1,065 | D80: 100.0
A81: 一般行政管理事务 | B81: 351 | D81: 0.0
A82: 机关服务
A83: 审计业务
A84: 审计管理
A85: 信息化建设
A86: 事业运行 | B86: 49 | C86: 55 | D86: 112.8
A87: 其他审计事务支出
A88: 海关事务 | B88: 93 | C88: 0
A89: 行政运行 | B89: 46
A90: 一般行政管理事务
A91: 机关服务
A92: 缉私办案
A93: 口岸管理
A94: 信息化建设
A95: 海关关务
A96: 关税征管
A97: 海关监管
A98: 检验检疫
A99: 事业运行
A100: 其他海关事务支出 | B100: 47
A101: 纪检监察事务 | B101: 2,610 | C101: 1,992 | D101: 76.3
A102: 行政运行 | B102: 1,637 | C102: 1,776 | D102: 108.5
A103: 一般行政管理事务 | B103: 490 | D103: 0.0
A104: 机关服务
A105: 大案要案查处 | B105: 100
A106: 派驻派出机构 | B106: 4 | C106: 3 | D106: 85.0
A107: 巡视工作 | B107: 130
A108: 事业运行 | B108: 161 | C108: 210 | D108: 130.2
A109: 其他纪检监察事务支出 | B109: 88 | C109: 3 | D109: 3.9
A110: 商贸事务 | B110: 3,606 | C110: 1,976 | D110: 54.8
A111: 行政运行 | B111: 2,397 | C111: 723 | D111: 30.2
A112: 一般行政管理事务
A113: 机关服务
A114: 对外贸易管理
A115: 国际经济合作
A116: 外资管理
A117: 国内贸易管理
A118: 招商引资 | B118: 816 | C118: 800 | D118: 98.0
A119: 事业运行 | B119: 393 | C119: 453 | D119: 115.3
A120: 其他商贸事务支出
A121: 知识产权事务 | B121: 5 | C121: 0 | D121: 0.0
A122: 行政运行
A123: 一般行政管理事务
A124: 机关服务
A125: 专利审批
A126: 知识产权战略和规划
A127: 国际合作与交流
A128: 知识产权宏观管理
A129: 商标管理
A130: 原产地地理标志管理
A131: 事业运行
A132: 其他知识产权事务支出 | B132: 5 | D132: 0.0
A133: 民族事务 | B133: 530 | C133: 476 | D133: 89.7
A134: 行政运行 | B134: 378 | C134: 363 | D134: 96.1
A135: 一般行政管理事务
A136: 机关服务
A137: 民族工作专项
A138: 事业运行 | B138: 97 | C138: 112 | D138: 115.8
A139: 其他民族事务支出 | B139: 55 | D139: 0.0
A140: 港澳台事务 | B140: 0 | C140: 0
A141: 行政运行
A142: 一般行政管理事务
A143: 机关服务
A144: 港澳事务
A145: 台湾事务
A146: 事业运行
A147: 其他港澳台事务支出
A148: 档案事务 | B148: 570 | C148: 551 | D148: 96.7
A149: 行政运行 | B149: 488 | C149: 549 | D149: 112.5
A150: 一般行政管理事务 | B150: 5 | D150: 0.0
A151: 机关服务
A152: 档案馆 | C152: 2
A153: 其他档案事务支出 | B153: 77 | D153: 0.0
A154: 民主党派及工商联事务 | B154: 128 | C154: 0 | D154: 0.0
A155: 行政运行
A156: 一般行政管理事务 | B156: 128 | D156: 0.0
A157: 机关服务
A158: 参政议政
A159: 事业运行
A160: 其他民主党派及工商联事务支出
A161: 群众团体事务 | B161: 1,472 | C161: 1,242 | D161: 84.4
A162: 行政运行 | B162: 579 | C162: 612 | D162: 105.7
A163: 一般行政管理事务 | B163: 111 | D163: 0.0
A164: 机关服务
A165: 工会事务
A166: 事业运行 | B166: 514 | C166: 630 | D166: 122.6
A167: 其他群众团体事务支出 | B167: 268 | D167: 0.0
A168: 党委办公厅(室)及相关机构事务 | B168: 4,751 | C168: 4,250 | D168: 89.5
A169: 行政运行 | B169: 4,047 | C169: 3,507 | D169: 86.7
A170: 一般行政管理事务 | B170: 641 | C170: 600 | D170: 93.6
A171: 机关服务 | B171: 0
A172: 专项业务 | B172: 0
A173: 事业运行 | B173: 63 | C173: 143 | D173: 227.0
A174: 其他党委办公厅(室)及相关机构事务支出 | B174: 0
A175: 组织事务 | B175: 2,389 | C175: 2,321 | D175: 97.2
A176: 行政运行 | B176: 1,242 | C176: 1,258 | D176: 101.3
A177: 一般行政管理事务 | B177: 597 | C177: 1,000 | D177: 167.5
A178: 机关服务 | B178: 0
A179: 公务员事务 | B179: 0
A180: 事业运行 | B180: 62 | C180: 63 | D180: 101.7
A181: 其他组织事务支出 | B181: 488 | D181: 0.0
A182: 宣传事务 | B182: 2,813 | C182: 4,070 | D182: 144.7
A183: 行政运行 | B183: 1,116 | C183: 754 | D183: 67.6
A184: 一般行政管理事务 | B184: 99 | D184: 0.0
A185: 机关服务 | B185: 0
A186: 宣传管理 | B186: 0
A187: 事业运行 | B187: 263 | C187: 316 | D187: 120.1
A188: 其他宣传事务支出 | B188: 1,335 | C188: 3,000 | D188: 224.7
A189: 统战事务 | B189: 1,556 | C189: 1,544 | D189: 99.3
A190: 行政运行 | B190: 1,373 | C190: 1,399 | D190: 101.9
A191: 一般行政管理事务 | B191: 54 | D191: 0.0
A192: 机关服务 | B192: 0
A193: 宗教事务 | B193: 0
A194: 华侨事务 | B194: 0
A195: 事业运行 | B195: 129 | C195: 146 | D195: 113.1
A196: 其他统战事务支出 | B196: 0
A197: 对外联络事务 | B197: 0 | C197: 6
A198: 行政运行 | B198: 0 | C198: 5
A199: 一般行政管理事务 | B199: 0
A200: 机关服务 | B200: 0
... 1127 more rows

Sheet 7.市本级一般公用预算收支平衡表
A1: 2022年攀枝花市市本级一般公共预算收支平衡表
A2: 单位：万元
A3: 项目 | B3: 预算数 | C3: 项目 | D3: 预算数
A4: 一般公共预算收入 | B4: 433,500 | C4: 一般公共预算支出 | D4: 662,150
A5: 上级补助收入 | B5: 245,805 | C5: 补助下级支出 | D5: 109,952
A6: 返还性收入 | B6: 29,646 | C6: 返还性支出 | D6: 12,739
A7: 所得税基数返还收入 | B7: 9,428 | C7: 所得税基数返还支出 | D7: 3,865
A8: 成品油税费改革税收返还收入 | B8: 19,263 | C8: 成品油税费改革税收返还支出 | D8: 473
A9: 增值税税收返还收入 | B9: 28,459 | C9: 增值税税收返还支出 | D9: 6,058
A10: 消费税税收返还收入 | B10: 965 | C10: 消费税税收返还支出 | D10: 171
A11: 增值税“五五分享”税收返还收入 | B11: -15,973 | C11: 增值税“五五分享”税收返还支出 | D11: 7,499
A12: 其他返还性收入 | B12: -12,496 | C12: 其他返还性支出 | D12: -5,327
A13: 一般性转移支付收入 | B13: 216,159 | C13: 一般性转移支付支出 | D13: 97,213
A14: 体制补助收入 | B14: 0 | C14: 体制补助支出
A15: 均衡性转移支付收入 | B15: 115,278 | C15: v | D15: 71,902
A16: 县级基本财力保障机制奖补资金收入 | B16: 10,123 | C16: 县级基本财力保障机制奖补资金支出 | D16: 10,123
A17: 结算补助收入 | B17: 29,342 | C17: 结算补助支出 | D17: 694
A18: 资源枯竭型城市转移支付补助收入 | B18: 6,200 | C18: 资源枯竭型城市转移支付补助支出 | D18: 6,200
A19: 企业事业单位划转补助收入 | B19: 22,315 | C19: 企业事业单位划转补助支出 | D19: -5,067
A20: 产粮(油)大县奖励资金收入 | B20: 0 | C20: 产粮(油)大县奖励资金支出
A21: 重点生态功能区转移支付收入 | C21: 重点生态功能区转移支付支出
A22: 固定数额补助收入 | B22: 32,901 | C22: 固定数额补助支出 | D22: 13,361
A23: 革命老区转移支付收入 | B23: 0 | C23: 革命老区转移支付支出
A24: 民族地区转移支付收入 | B24: 0 | C24: 民族地区转移支付支出
A25: 边境地区转移支付收入 | C25: 边境地区转移支付支出
A26: 贫困地区转移支付收入 | C26: 贫困地区转移支付支出
A27: 一般公共服务共同财政事权转移支付收入 | C27: 一般公共服务共同财政事权转移支付支出
A28: 外交共同财政事权转移支付收入 | C28: 外交共同财政事权转移支付支出
A29: 国防共同财政事权转移支付收入 | C29: 国防共同财政事权转移支付支出
A30: 公共安全共同财政事权转移支付收入 | C30: 公共安全共同财政事权转移支付支出
A31: 教育共同财政事权转移支付收入 | C31: 教育共同财政事权转移支付支出
A32: 科学技术共同财政事权转移支付收入 | C32: 科学技术共同财政事权转移支付支出
A33: 文化旅游体育与传媒共同财政事权转移支付收入 | C33: 文化旅游体育与传媒共同财政事权转移支付支出
A34: 社会保障和就业共同财政事权转移支付收入 | C34: 社会保障和就业共同财政事权转移支付支出
A35: 医疗卫生共同财政事权转移支付收入 | C35: 医疗卫生共同财政事权转移支付支出
A36: 节能环保共同财政事权转移支付收入 | C36: 节能环保共同财政事权转移支付支出
A37: 城乡社区共同财政事权转移支付收入 | C37: 城乡社区共同财政事权转移支付支出
A38: 农林水共同财政事权转移支付收入 | C38: 农林水共同财政事权转移支付支出
A39: 交通运输共同财政事权转移支付收入 | C39: 交通运输共同财政事权转移支付支出
A40: 资源勘探信息等共同财政事权转移支付收入 | C40: 资源勘探信息等共同财政事权转移支付支出
A41: 商业服务业等共同财政事权转移支付收入 | C41: 商业服务业等共同财政事权转移支付支出
A42: 金融共同财政事权转移支付收入 | C42: 金融共同财政事权转移支付支出
A43: 自然资源海洋气象等共同财政事权转移支付收入 | C43: 自然资源海洋气象等共同财政事权转移支付支出
A44: 住房保障共同财政事权转移支付收入 | C44: 住房保障共同财政事权转移支付支出
A45: 粮油物资储备共同财政事权转移支付收入 | C45: 粮油物资储备共同财政事权转移支付支出
A46: 灾害防治及应急管理共同财政事权转移支付收入 | C46: 灾害防治及应急管理共同财政事权转移支付支出
A47: 其他共同财政事权转移支付收入 | C47: 其他共同财政事权转移支付支出
A48: 其他一般性转移支付收入 | C48: 其他一般性转移支付支出
A49: 专项转移支付收入 | C49: 专项转移支付支出
A50: 下级上解收入 | B50: 37,531 | C50: 上解上级支出 | D50: 87,351
A51: 体制上解收入 | B51: 0 | C51: 体制上解支出 | D51: 0
A52: 专项上解收入 | B52: 37,531 | C52: 专项上解支出 | D52: 87,351
A53: 上年结余
A54: 调入资金 | B54: 164,150 | C54: 调出资金 | D54: 0
A55: 从政府性基金预算调入
A56: 从国有资本经营预算调入 | B56: 750
A57: 从其他资金调入 | B57: 163,400
A58: 债务收入 | B58: 0 | C58: 债务还本支出 | D58: 18,665
A59: 地方政府债务收入 | B59: 0 | C59: 地方政府一般债务还本支出 | D59: 18,665
A60: 一般债务收入 | B60: 0 | C60: 地方政府一般债券还本支出 | D60: 14,665
A61: 地方政府一般债券收入 | B61: 0 | C61: 地方政府向外国政府借款还本支出 | D61: 4,000
A62: 地方政府向外国政府借款收入 | B62: 0 | C62: 地方政府向国际组织借款还本支出
A63: 地方政府向国际组织借款收入 | B63: 0 | C63: 地方政府其他一般债务还本支出 | D63: 0
A64: 地方政府其他一般债务收入 | B64: 0
A65: 债务转贷收入 | C65: 债务转贷支出
A66: 地方政府一般债务转贷收入 | C66: 地方政府一般债券转贷支出
A67: 地方政府一般债券转贷收入 | C67: 地方政府向外国政府借款转贷支出 | D67: 0
A68: 地方政府向外国政府借款转贷收入 | B68: 0 | C68: 地方政府向国际组织借款转贷支出 | D68: 0
A69: 地方政府向国际组织借款转贷收入 | B69: 0 | C69: 地方政府其他一般债务转贷支出 | D69: 0
A70: 地方政府其他一般债务转贷收入 | B70: 0
A71: 动用预算稳定调节基金 | B71: 1,625 | C71: 安排预算稳定调节基金
A72: 接受其他地区援助收入 | B72: 0 | C72: 援助其他地区支出 | D72: 4,493
C73: 年终结余
C74: 减:结转下年的支出
C75: 净结余 | D75: 0
A76: 收 入 总 计 | B76: 882,611 | C76: 支 出 总 计 | D76: 882,611

Sheet 8.市本级一般公共预算经济分类科目预算表
A1: 2022年攀枝花市市本级一般公共预算经济分类科目支出预算表
B2: 单位:万元
A3: 项目 | B3: 预算数
A4: 机关工资福利支出 | B4: =SUM(B5:B8) -> 166,369
A5: 工资奖金津补贴 | B5: 123,100
A6: 社会保障缴费 | B6: 21,030
A7: 住房公积金 | B7: 14,772
A8: 其他工资福利支出 | B8: 7,467
A9: 机关商品和服务支出 | B9: =SUM(B10:B19) -> 174,498
A10: 办公经费 | B10: 19,120
A11: 会议费 | B11: 460
A12: 培训费 | B12: 100
A13: 专用材料购置费
A14: 委托业务费 | B14: 9,709
A15: 公务接待费 | B15: 681
A16: 因公出国(境)费用
A17: 公务用车运行维护费 | B17: 1,650
A18: 维修(护)费 | B18: 40
A19: 其他商品和服务支出 | B19: 142,738
A20: 机关资本性支出(一) | B20: =SUM(B21:B27) -> 14,825
A21: 房屋建筑物购建
A22: 基础设施建设 | B22: 8,000
A23: 公务用车购置
A24: 土地征迁补偿和安置支出
A25: 设备购置
A26: 大型修缮
A27: 其他资本性支出 | B27: 6,825
A28: 机关资本性支出(二) | B28: =SUM(B29:B34) -> 0
A29: 房屋建筑物购建
A30: 基础设施建设
A31: 公务用车购置
A32: 设备购置
A33: 大型修缮
A34: 其他资本性支出
A35: 对事业单位经常性补助 | B35: =SUM(B36:B38) -> 158,915
A36: 工资福利支出 | B36: 119,415
A37: 商品和服务支出 | B37: 36,000
A38: 其他对事业单位补助 | B38: 3,500
A39: 对事业单位资本性补助 | B39: =SUM(B40:B41) -> 4,500
A40: 资本性支出(一) | B40: 500
A41: 资本性支出(二) | B41: 4,000
A42: 对企业补助 | B42: =SUM(B43:B45) -> 1,150
A43: 费用补贴 | B43: 300
A44: 利息补贴 | B44: 850
A45: 其他对企业补助
A46: 对企业资本性支出 | B46: =SUM(B47:B48) -> 33,139
A47: 对企业资本性支出(一)
A48: 对企业资本性支出(二) | B48: 33,139
A49: 对个人和家庭的补助 | B49: =SUM(B50:B54) -> 36,596
A50: 社会福利和救助 | B50: 1,500
A51: 助学金 | B51: 3,600
A52: 个人农业生产补贴
A53: 离退休费 | B53: 21,746
A54: 其他对个人和家庭补助 | B54: 9,750
A55: 对社会保障基金补助 | B55: =SUM(B56:B57) -> 40,000
A56: 对社会保险基金补助 | B56: 40,000
A57: 补充全国社会保障基金
A58: 债务利息及费用支出 | B58: =SUM(B59:B62) -> 26,158
A59: 国内债务付息 | B59: 26,011
A60: 国外债务付息
A61: 国内债务发行费用 | B61: 147
A62: 国外债务发行费用
A63: 其他支出 | B63: =SUM(B64:B67) -> 6,000
A64: 赠与
A65: 国家赔偿费用支出
A66: 对民间非营利组织和群众性自治组织补贴
A67: 其他支出 | B67: 6,000
A68: 一般公共预算支出 | B68: =B4+B9+B20+B28+B35+B39+B42+B46+B49+B55+B58+B63 -> 662,150

Sheet 9.市本级一般公共预算经济分类科目基本支出预算表
A1: 2022年攀枝花市市本级一般公共预算经济分类科目基本支出预算表
B2: 单位:万元
A3: 科 目 | B3: 年初预算数
A4: 机关工资福利支出 | B4: 133,172
A5: 工资奖金津补贴 | B5: 95,000
A6: 社会保障缴费 | B6: 16,000
A7: 住房公积金 | B7: 14,772
A8: 其他工资福利支出 | B8: 7,400
A9: 机关商品和服务支出 | B9: 25,991
A10: 办公经费 | B10: 19,120
A11: 会议费
A12: 培训费
A13: 专用材料购置费
A14: 委托业务费 | B14: 20
A15: 公务接待费 | B15: 481
A16: 因公出国（境）费用
A17: 公务用车运行维护费 | B17: 1,370
A18: 维修（护）费
A19: 其他商品和服务支出 | B19: 5,000
A20: 机关资本性支出（一）
A21: 房屋建筑物购建
A22: 基础设施建设
A23: 公务用车购置
A24: 土地征迁补偿和安置支出
A25: 设备购置
A26: 大型修缮
A27: 其他资本性支出
A28: 机关资本性支出（二）
A29: 房屋建筑物购建
A30: 基础设施建设
A31: 公务用车购置
A32: 设备购置
A33: 大型修缮
A34: 其他资本性支出
A35: 对事业单位经常性补助 | B35: 123,000
A36: 工资福利支出 | B36: 100,000
A37: 商品和服务支出 | B37: 20,000
A38: 其他对事业单位补助 | B38: 3,000
A39: 对事业单位资本性补助
A40: 资本性支出（一）
A41: 资本性支出（二）
A42: 对企业补助
A43: 费用补贴
A44: 利息补贴
A45: 其他对企业补助
A46: 对企业资本性支出
A47: 对企业资本性支出（一）
A48: 对企业资本性支出（二）
A49: 对个人和家庭的补助 | B49: 23,700
A50: 社会福利和救助 | B50: 1,100
A51: 助学金 | B51: 3,600
A52: 个人农业生产补贴
A53: 离退休费 | B53: 17,000
A54: 其他对个人和家庭补助 | B54: 2,000
A55: 对社会保障基金补助
A56: 对社会保险基金补助
A57: 补充全国社会保障基金
A58: 对机关事业单位职业年金的补助
A59: 债务利息及费用支出
A60: 国内债务付息
A61: 国外债务付息
A62: 国内债务发行费用
A63: 国外债务发行费用
A64: 其他支出
A65: 赠与
A66: 国家赔偿费用支出
A67: 对民间非营利组织和群众性自治组织补贴
A68: 其他支出
A69: 一般公共预算支出 | B69: 305,863

Sheet 10.市对区税返和转移支付
A1: 2022年攀枝花市税返和转移支付（分项目）预算表
E2: 单位：万元
A3: 科 目 | B3: 省对市补助 | C3: 市对区补助
C4: 小计 | D4: 东区 | E4: 西区 | F4: 仁和区
A5: 返还性支出 | B5: 28,611 | C5: 12,739 | D5: 1,152 | E5: 2,504 | F5: 9,083
A6: 所得税基数返还支出 | B6: 9,437 | C6: 3,865 | D6: 3,970 | E6: 1,040 | F6: -1,145
A7: 成品油税费改革税收返还支出 | B7: 21,087 | C7: 473 | D7: 184 | E7: 97 | F7: 192
A8: 增值税税收返还支出 | B8: 38,251 | C8: 6,058 | D8: 23 | E8: 1,862 | F8: 4,173
A9: 消费税税收返还支出 | B9: 966 | C9: 171 | D9: 3 | E9: 157 | F9: 11
A10: 增值税“五五分享”税收返还支出 | B10: -28,149 | C10: 7,499 | D10: 2,327 | E10: -14 | F10: 5,186
A11: 其他返还性支出 | B11: -12,981 | C11: -5,327 | D11: -5,355 | E11: -638 | F11: 666
A12: 一般性转移支付 | B12: =SUM(B13:B19) -> 268,769 | C12: =SUM(C13:C19) -> 97,213 | D12: =SUM(D13:D19) -> 40,687 | E12: =SUM(E13:E19) -> 42,333 | F12: =SUM(F13:F19) -> 14,193
A13: 均衡性转移支付 | B13: 154,651 | C13: =D13+E13+F13 -> 71,902 | D13: 20,659 | E13: 29,636 | F13: 21,607
A14: 企业事业单位划转补助支出 | B14: 22,357 | C14: =D14+E14+F14 -> -5,067 | D14: 11,758 | E14: 4,049 | F14: -20,874
A15: 县级基本财力保障机制奖补资金 | B15: 15,842 | C15: =D15+E15+F15 -> 10,123 | D15: 2,870 | E15: 4,741 | F15: 2,512
A16: 资源枯竭城市转移支付
A17: 结算补助收入 | B17: 12,986 | C17: =D17+E17+F17 -> 694 | D17: -700 | E17: 520 | F17: 874
A18: 固定数额补助收入 | B18: 53,032 | C18: =D18+E18+F18 -> 13,361 | D18: 3,100 | E18: 1,571 | F18: 8,690
A19: 重点生态功能区转移支付收入 | B19: 9,901 | C19: =D19+E19+F19 -> 6,200 | D19: 3,000 | E19: 1,816 | F19: 1,384
A20: 专项转移支付 | B20: 705
A21: 农林水 | B21: 705
A22: 合计 | B22: =B20+B12+B5 -> 298,085 | C22: =C5+C12+C20 -> 109,952 | D22: =D5+D12+D20 -> 41,839 | E22: =E5+E12+E20 -> 44,837 | F22: =F5+F12+F20 -> 23,276

Sheet 11.全市政府性基金收入预算表
A1: 2022年攀枝花市政府性基金预算收入预算表
C2: 单位:万元，%
A3: 预算科目 | B3: 上年完成数 | C3: 预算数 | D3: 为上年完成数
A4: 国有土地收益基金收入 | B4: 16,553 | C4: 15,541 | D4: 93.9
A5: 农业土地开发资金收入 | B5: 844 | C5: 713 | D5: 84.5
A6: 国有土地使用权出让收入 | B6: 424,302 | C6: 395,746 | D6: 93.3
A7: 城市基础设施配套费收入 | B7: 10,414 | C7: 10,500 | D7: 100.8
A8: 污水处理费收入 | B8: 5,089 | C8: 6,500 | D8: 127.7
A9: 其他政府性基金收入
A10: 政府性基金预算收入 | B10: 457,202 | C10: 429,000 | D10: 93.8

Sheet 12.全市政府性基金支出预算表
A1: 2022年攀枝花市政府性基金预算支出预算表
A3: 预算科目 | B3: 预算数 | C3: 为上年完成数
A4: 科学技术支出 | B4: 0 | C4: 0
A5: 核电站乏燃料处理处置基金支出 | B5: 0 | C5: 0
A6: 乏燃料运输 | B6: 0 | C6: 0
A7: 乏燃料离堆贮存 | B7: 0 | C7: 0
A8: 乏燃料后处理 | B8: 0 | C8: 0
A9: 高放废物的处理处置 | B9: 0 | C9: 0
A10: 乏燃料后处理厂的建设、运行、改造和退役 | B10: 0 | C10: 0
A11: 其他乏燃料处理处置基金支出 | B11: 0 | C11: 0
A12: 文化旅游体育与传媒支出 | C12: 0.0
A13: 国家电影事业发展专项资金安排的支出 | C13: 0.0
A14: 资助国产影片放映 | B14: 0
A15: 资助影院建设 | B15: 0
A16: 资助少数民族语电影译制 | B16: 0
A17: 其他国家电影事业发展专项资金支出 | C17: 0.0
A18: 旅游发展基金支出 | B18: 0
A19: 宣传促销 | B19: 0
A20: 行业规划 | B20: 0
A21: 旅游事业补助 | B21: 0
A22: 地方旅游开发项目补助 | B22: 0
A23: 其他旅游发展基金支出 | B23: 0
A24: 国家电影事业发展专项资金对应专项债务收入安排的支出 | B24: 0
A25: 资助城市影院 | B25: 0
A26: 其他国家电影事业发展专项资金对应专项债务收入支出 | B26: 0
A27: 社会保障和就业支出 | C27: 0.0
A28: 大中型水库移民后期扶持基金支出 | C28: 0.0
A29: 移民补助 | C29: 0.0
A30: 基础设施建设和经济发展
A31: 其他大中型水库移民后期扶持基金支出 | B31: 0
A32: 小型水库移民扶助基金安排的支出
A33: 移民补助
A34: 基础设施建设和经济发展
A35: 其他小型水库移民扶助基金支出 | B35: 0
A36: 小型水库移民扶助基金对应专项债务收入安排的支出 | B36: 0
A37: 基础设施建设和经济发展 | B37: 0
A38: 其他小型水库移民扶助基金对应专项债务收入安排的支出 | B38: 0
A39: 节能环保支出 | B39: 0
A40: 可再生能源电价附加收入安排的支出 | B40: 0
A41: 风力发电补助 | B41: 0
A42: 太阳能发电补助 | B42: 0
A43: 生物质能发电补助 | B43: 0
A44: 其他可再生能源电价附加收入安排的支出 | B44: 0
A45: 废弃电器电子产品处理基金支出 | B45: 0
A46: 回收处理费用补贴 | B46: 0
A47: 信息系统建设 | B47: 0
A48: 基金征管经费 | B48: 0
A49: 其他废弃电器电子产品处理基金支出 | B49: 0
A50: 城乡社区支出 | B50: 370,742 | C50: 87.5
A51: 国有土地使用权出让收入及对应专项债务收入安排的支出 | B51: 350,000 | C51: 89.3
A52: 征地和拆迁补偿支出 | B52: 50,000 | C52: 128.4
A53: 土地开发支出 | B53: 300,000 | C53: 98.0
A54: 城市建设支出 | C54: 0.0
A55: 农村基础设施建设支出 | B55: 0 | C55: 0
A56: 补助被征地农民支出 | B56: 0 | C56: 0
A57: 土地出让业务支出 | B57: 0
A58: 廉租住房支出 | B58: 0
A59: 支付破产或改制企业职工安置费 | B59: 0
A60: 棚户区改造支出 | C60: 0.0
A61: 公共租赁住房支出 | B61: 0
A62: 保障性住房租金补贴 | B62: 0
A63: 其他国有土地使用权出让收入安排的支出 | B63: 0 | C63: 0
A64: 国有土地收益基金安排的支出 | B64: 3,029 | C64: 88.7
A65: 征地和拆迁补偿支出 | B65: 3,029 | C65: 88.7
A66: 土地开发支出 | B66: 0
A67: 其他国有土地收益基金支出 | B67: 0
A68: 农业土地开发资金安排的支出 | B68: 713 | C68: 448.4
A69: 城市基础设施配套费安排的支出 | B69: 10,500 | C69: 235.4
A70: 城市公共设施 | C70: 0.0
A71: 城市环境卫生 | B71: 5,000 | C71: 246.2
A72: 公有房屋 | B72: 0
A73: 城市防洪 | B73: 0
A74: 其他城市基础设施配套费安排的支出 | B74: 5,500 | C74: 235.6
A75: 污水处理费安排的支出 | B75: 6,500 | C75: 88.9
A76: 污水处理设施建设和运营 | C76: 0.0
A77: 代征手续费 | B77: 0
A78: 其他污水处理费安排的支出 | B78: 6,500 | C78: 91.9
A79: 土地储备专项债券收入安排的支出 | B79: 0
A80: 征地和拆迁补偿支出 | B80: 0
A81: 土地开发支出 | B81: 0
A82: 其他土地储备专项债券收入安排的支出 | B82: 0
A83: 棚户区改造专项债券收入安排的支出 | C83: 0.0
A84: 征地和拆迁补偿支出 | B84: 0
A85: 土地开发支出 | B85: 0
A86: 其他棚户区改造专项债券收入安排的支出 | C86: 0.0
A87: 城市基础设施配套费对应专项债务收入安排的支出 | B87: 0
A88: 城市公共设施 | B88: 0
A89: 城市环境卫生 | B89: 0
A90: 公有房屋 | B90: 0
A91: 城市防洪 | B91: 0
A92: 其他城市基础设施配套费对应专项债务收入安排的支出 | B92: 0
A93: 污水处理费对应专项债务收入安排的支出 | B93: 0
A94: 污水处理设施建设和运营 | B94: 0
A95: 其他污水处理费对应专项债务收入安排的支出 | B95: 0
A96: 农林水支出
A97: 大中型水库库区基金安排的支出
A98: 基础设施建设和经济发展
A99: 解决移民遗留问题 | B99: 0
A100: 库区防护工程维护 | B100: 0
A101: 其他大中型水库库区基金支出
A102: 三峡水库库区基金支出 | B102: 0
A103: 基础设施建设和经济发展 | B103: 0
A104: 解决移民遗留问题 | B104: 0
A105: 库区维护和管理 | B105: 0
A106: 其他三峡水库库区基金支出 | B106: 0
A107: 国家重大水利工程建设基金安排的支出 | B107: 0
A108: 南水北调工程建设 | B108: 0
A109: 三峡后续工作 | B109: 0
A110: 地方重大水利工程建设 | B110: 0
A111: 其他重大水利工程建设基金支出 | B111: 0
A112: 大中型水库库区基金对应专项债务收入安排的支出 | B112: 0
A113: 基础设施建设和经济发展 | B113: 0
A114: 其他大中型水库库区基金对应专项债务收入支出 | B114: 0
A115: 国家重大水利工程建设基金对应专项债务收入安排的支出 | B115: 0
A116: 南水北调工程建设 | B116: 0
A117: 三峡工程后续工作 | B117: 0
A118: 地方重大水利工程建设 | B118: 0
A119: 其他重大水利工程建设基金对应专项债务收入支出 | B119: 0
A120: 交通运输支出 | B120: 0
A121: 海南省高等级公路车辆通行附加费安排的支出 | B121: 0
A122: 公路建设 | B122: 0
A123: 公路养护 | B123: 0
A124: 公路还贷 | B124: 0
A125: 其他海南省高等级公路车辆通行附加费安排的支出 | B125: 0
A126: 车辆通行费安排的支出 | B126: 0
A127: 公路还贷 | B127: 0
A128: 政府还贷公路养护 | B128: 0
A129: 政府还贷公路管理 | B129: 0
A130: 其他车辆通行费安排的支出 | B130: 0
A131: 港口建设费安排的支出 | B131: 0
A132: 港口设施 | B132: 0
A133: 航道建设和维护 | B133: 0
A134: 航运保障系统建设 | B134: 0
A135: 其他港口建设费安排的支出 | B135: 0
A136: 铁路建设基金支出 | B136: 0
A137: 铁路建设投资 | B137: 0
A138: 购置铁路机车车辆 | B138: 0
A139: 铁路还贷 | B139: 0
A140: 建设项目铺底资金 | B140: 0
A141: 勘测设计 | B141: 0
A142: 注册资本金 | B142: 0
A143: 周转资金 | B143: 0
A144: 其他铁路建设基金支出 | B144: 0
A145: 船舶油污损害赔偿基金支出 | B145: 0
A146: 应急处置费用 | B146: 0
A147: 控制清除污染 | B147: 0
A148: 损失补偿 | B148: 0
A149: 生态恢复 | B149: 0
A150: 监视监测 | B150: 0
A151: 其他船舶油污损害赔偿基金支出 | B151: 0
A152: 民航发展基金支出 | B152: 0
A153: 民航机场建设 | B153: 0
A154: 空管系统建设 | B154: 0
A155: 民航安全 | B155: 0
A156: 航线和机场补贴 | B156: 0
A157: 民航节能减排 | B157: 0
A158: 通用航空发展 | B158: 0
A159: 征管经费 | B159: 0
A160: 其他民航发展基金支出 | B160: 0
A161: 海南省高等级公路车辆通行附加费对应专项债务收入安排的支出 | B161: 0
A162: 公路建设 | B162: 0
A163: 其他海南省高等级公路车辆通行附加费对应专项债务收入安排的支出 | B163: 0
A164: 政府收费公路专项债券收入安排的支出 | B164: 0
A165: 公路建设 | B165: 0
A166: 其他政府收费公路专项债券收入安排的支出 | B166: 0
A167: 车辆通行费对应专项债务收入安排的支出 | B167: 0
A168: 港口建设费对应专项债务收入安排的支出 | B168: 0
A169: 港口设施 | B169: 0
A170: 航运保障系统建设 | B170: 0
A171: 其他港口建设费对应专项债务收入安排的支出 | B171: 0
A172: 资源勘探信息等支出 | B172: 0
A173: 农网还贷资金支出 | B173: 0
A174: 中央农网还贷资金支出 | B174: 0
A175: 地方农网还贷资金支出 | B175: 0
A176: 其他农网还贷资金支出 | B176: 0
A177: 金融支出 | B177: 0
A178: 金融调控支出 | B178: 0
A179: 中央特别国债经营基金支出 | B179: 0
A180: 中央特别国债经营基金财务支出 | B180: 0
A181: 其他支出 | C181: 0.0
A182: 其他政府性基金及对应专项债务收入安排的支出 | C182: 0.0
A183: 其他政府性基金安排的支出 | B183: 0
A184: 其他地方自行试点项目收益专项债券收入安排的支出 | C184: 0.0
A185: 其他政府性基金债务收入安排的支出 | B185: 0
A186: 彩票发行销售机构业务费安排的支出 | B186: 0
A187: 福利彩票发行机构的业务费支出 | B187: 0
A188: 体育彩票发行机构的业务费支出 | B188: 0
A189: 福利彩票销售机构的业务费支出 | B189: 0
A190: 体育彩票销售机构的业务费支出 | B190: 0
A191: 彩票兑奖周转金支出 | B191: 0
A192: 彩票发行销售风险基金支出 | B192: 0
A193: 彩票市场调控资金支出 | B193: 0
A194: 其他彩票发行销售机构业务费安排的支出 | B194: 0
A195: 彩票公益金安排的支出 | C195: 0.0
A196: 用于补充全国社会保障基金的彩票公益金支出 | B196: 0
A197: 用于社会福利的彩票公益金支出 | C197: 0.0
A198: 用于体育事业的彩票公益金支出 | C198: 0.0
A199: 用于教育事业的彩票公益金支出 | B199: 0
A200: 用于红十字事业的彩票公益金支出 | B200: 0
A201: 用于残疾人事业的彩票公益金支出 | C201: 0.0
... 65 more rows

Sheet 13.全市政府性基金收支预算平衡表
A1: 2022年攀枝花市政府性基金预算收支平衡表
A2: 单位：万元
A3: 项目 | B3: 预算数 | C3: 项目 | D3: 预算数
A4: 政府性基金预算收入 | B4: 429,000 | C4: 政府性基金预算支出 | D4: 370,742
A5: 政府性基金预算上级补助收入 | C5: 政府性基金预算补助下级支出
A6: 政府性基金预算下级上解收入 | C6: 政府性基金预算上解上级支出
A7: 政府性基金预算上年结余
A8: 政府性基金预算调入资金 | C8: 政府性基金预算调出资金
A9: 一般公共预算调入
A10: 其他调入资金
A11: 债务收入 | C11: 债务还本支出 | D11: 58,258
C12: 地方政府专项债务还本支出 | D12: 58,258
A13: 债务转贷收入 | C13: 债务转贷支出
A14: 地方政府专项债务转贷收入 | C14: 政府性基金预算年终结余
A15: 收入总计 | B15: =B4+B5+B7+B8+B13 -> 429,000 | C15: 支出总计 | D15: =D4+D8+D11+D14 -> 429,000

Sheet 14.市本级政府性基金收入预算表
A1: 2022年攀枝花市市本级政府性基金预算收入预算表
B2: 单位:万元，%
A3: 预算科目 | B3: 上年完成数 | C3: 预算数 | D3: 为上年完成数
A4: 国有土地收益基金收入 | B4: 13,137 | C4: 13,500 | D4: 102.8
A5: 农业土地开发资金收入 | B5: 685 | C5: 700 | D5: 102.2
A6: 国有土地使用权出让收入 | B6: 226,318 | C6: 145,800 | D6: 64.4
A7: 城市基础设施配套费收入 | B7: 4,459 | C7: 8,000 | D7: 179.4
A8: 污水处理费收入 | B8: 4,351 | C8: 6,000 | D8: 137.9
A9: 其他政府性基金收入
A10: 政府性基金预算收入 | B10: 248,950 | C10: 174,000 | D10: 69.9

Sheet 15.市本级政府性基金支出预算表
A1: 2022年攀枝花市市本级政府性基金支出预算表
B2: 单位：万元，%
A3: 预算科目 | B3: 预算数 | C3: 为上年完成数
A4: 科学技术支出 | B4: 0
A5: 核电站乏燃料处理处置基金支出 | B5: 0
A6: 乏燃料运输 | B6: 0
A7: 乏燃料离堆贮存 | B7: 0
A8: 乏燃料后处理 | B8: 0
A9: 高放废物的处理处置 | B9: 0
A10: 乏燃料后处理厂的建设、运行、改造和退役 | B10: 0
A11: 其他乏燃料处理处置基金支出 | B11: 0
A12: 文化旅游体育与传媒支出 | B12: 0
A13: 国家电影事业发展专项资金安排的支出 | B13: 0
A14: 资助国产影片放映 | B14: 0
A15: 资助影院建设 | B15: 0
A16: 资助少数民族语电影译制 | B16: 0
A17: 其他国家电影事业发展专项资金支出 | B17: 0
A18: 旅游发展基金支出 | B18: 0
A19: 宣传促销 | B19: 0
A20: 行业规划 | B20: 0
A21: 旅游事业补助 | B21: 0
A22: 地方旅游开发项目补助 | B22: 0
A23: 其他旅游发展基金支出 | B23: 0
A24: 国家电影事业发展专项资金对应专项债务收入安排的支出 | B24: 0
A25: 资助城市影院 | B25: 0
A26: 其他国家电影事业发展专项资金对应专项债务收入支出 | B26: 0
A27: 社会保障和就业支出 | B27: 0
A28: 大中型水库移民后期扶持基金支出 | B28: 0
A29: 移民补助 | B29: 0
A30: 基础设施建设和经济发展 | B30: 0
A31: 其他大中型水库移民后期扶持基金支出 | B31: 0
A32: 小型水库移民扶助基金安排的支出 | B32: 0
A33: 移民补助 | B33: 0
A34: 基础设施建设和经济发展 | B34: 0
A35: 其他小型水库移民扶助基金支出 | B35: 0
A36: 小型水库移民扶助基金对应专项债务收入安排的支出 | B36: 0
A37: 基础设施建设和经济发展 | B37: 0
A38: 其他小型水库移民扶助基金对应专项债务收入安排的支出 | B38: 0
A39: 节能环保支出 | B39: 0
A40: 可再生能源电价附加收入安排的支出 | B40: 0
A41: 风力发电补助 | B41: 0
A42: 太阳能发电补助 | B42: 0
A43: 生物质能发电补助 | B43: 0
A44: 其他可再生能源电价附加收入安排的支出 | B44: 0
A45: 废弃电器电子产品处理基金支出 | B45: 0
A46: 回收处理费用补贴 | B46: 0
A47: 信息系统建设 | B47: 0
A48: 基金征管经费 | B48: 0
A49: 其他废弃电器电子产品处理基金支出 | B49: 0
A50: 城乡社区支出 | B50: 136,300 | C50: 69.1
A51: 国有土地使用权出让收入安排的支出 | B51: 122,300 | C51: 64.6
A52: 征地和拆迁补偿支出 | B52: 0
A53: 土地开发支出 | B53: 122,300 | C53: 65.0
A54: 城市建设支出
A55: 农村基础设施建设支出 | B55: 0
A56: 补助被征地农民支出 | B56: 0
A57: 土地出让业务支出 | B57: 0
A58: 廉租住房支出 | B58: 0
A59: 支付破产或改制企业职工安置费 | B59: 0
A60: 棚户区改造支出
A61: 公共租赁住房支出 | B61: 0
A62: 保障性住房租金补贴 | B62: 0
A63: 其他国有土地使用权出让收入安排的支出 | B63: 0
A64: 国有土地收益基金安排的支出
A65: 征地和拆迁补偿支出
A66: 土地开发支出
A67: 其他国有土地收益基金支出
A68: 农业土地开发资金安排的支出
A69: 城市基础设施配套费安排的支出 | B69: 8,000 | C69: 808.1
A70: 城市公共设施
A71: 城市环境卫生 | B71: 0
A72: 公有房屋 | B72: 0
A73: 城市防洪 | B73: 0
A74: 其他城市基础设施配套费安排的支出 | B74: 8,000 | C74: 808.1
A75: 污水处理费安排的支出 | B75: 6,000 | C75: 85.3
A76: 污水处理设施建设和运营 | B76: 0
A77: 代征手续费
A78: 其他污水处理费安排的支出 | B78: 6,000 | C78: 85.3
A79: 土地储备专项债券收入安排的支出 | B79: 0
A80: 征地和拆迁补偿支出 | B80: 0
A81: 土地开发支出 | B81: 0
A82: 其他土地储备专项债券收入安排的支出 | B82: 0
A83: 棚户区改造专项债券收入安排的支出 | B83: 0
A84: 征地和拆迁补偿支出 | B84: 0
A85: 土地开发支出 | B85: 0
A86: 其他棚户区改造专项债券收入安排的支出 | B86: 0
A87: 城市基础设施配套费对应专项债务收入安排的支出 | B87: 0
A88: 城市公共设施 | B88: 0
A89: 城市环境卫生 | B89: 0
A90: 公有房屋 | B90: 0
A91: 城市防洪 | B91: 0
A92: 其他城市基础设施配套费对应专项债务收入安排的支出 | B92: 0
A93: 污水处理费对应专项债务收入安排的支出 | B93: 0
A94: 污水处理设施建设和运营 | B94: 0
A95: 其他污水处理费对应专项债务收入安排的支出 | B95: 0
A96: 农林水支出
A97: 大中型水库库区基金安排的支出
A98: 基础设施建设和经济发展
A99: 解决移民遗留问题
A100: 库区防护工程维护 | B100: 0
A101: 其他大中型水库库区基金支出 | B101: 0
A102: 三峡水库库区基金支出 | B102: 0
A103: 基础设施建设和经济发展 | B103: 0
A104: 解决移民遗留问题 | B104: 0
A105: 库区维护和管理 | B105: 0
A106: 其他三峡水库库区基金支出 | B106: 0
A107: 国家重大水利工程建设基金安排的支出 | B107: 0
A108: 南水北调工程建设 | B108: 0
A109: 三峡后续工作 | B109: 0
A110: 地方重大水利工程建设 | B110: 0
A111: 其他重大水利工程建设基金支出 | B111: 0
A112: 大中型水库库区基金对应专项债务收入安排的支出 | B112: 0
A113: 基础设施建设和经济发展 | B113: 0
A114: 其他大中型水库库区基金对应专项债务收入支出 | B114: 0
A115: 国家重大水利工程建设基金对应专项债务收入安排的支出 | B115: 0
A116: 南水北调工程建设 | B116: 0
A117: 三峡工程后续工作 | B117: 0
A118: 地方重大水利工程建设 | B118: 0
A119: 其他重大水利工程建设基金对应专项债务收入支出 | B119: 0
A120: 交通运输支出 | B120: 0
A121: 海南省高等级公路车辆通行附加费安排的支出 | B121: 0
A122: 公路建设 | B122: 0
A123: 公路养护 | B123: 0
A124: 公路还贷 | B124: 0
A125: 其他海南省高等级公路车辆通行附加费安排的支出 | B125: 0
A126: 车辆通行费安排的支出 | B126: 0
A127: 公路还贷 | B127: 0
A128: 政府还贷公路养护 | B128: 0
A129: 政府还贷公路管理 | B129: 0
A130: 其他车辆通行费安排的支出 | B130: 0
A131: 港口建设费安排的支出 | B131: 0
A132: 港口设施 | B132: 0
A133: 航道建设和维护 | B133: 0
A134: 航运保障系统建设 | B134: 0
A135: 其他港口建设费安排的支出 | B135: 0
A136: 铁路建设基金支出 | B136: 0
A137: 铁路建设投资 | B137: 0
A138: 购置铁路机车车辆 | B138: 0
A139: 铁路还贷 | B139: 0
A140: 建设项目铺底资金 | B140: 0
A141: 勘测设计 | B141: 0
A142: 注册资本金 | B142: 0
A143: 周转资金 | B143: 0
A144: 其他铁路建设基金支出 | B144: 0
A145: 船舶油污损害赔偿基金支出 | B145: 0
A146: 应急处置费用 | B146: 0
A147: 控制清除污染 | B147: 0
A148: 损失补偿 | B148: 0
A149: 生态恢复 | B149: 0
A150: 监视监测 | B150: 0
A151: 其他船舶油污损害赔偿基金支出 | B151: 0
A152: 民航发展基金支出 | B152: 0
A153: 民航机场建设 | B153: 0
A154: 空管系统建设 | B154: 0
A155: 民航安全 | B155: 0
A156: 航线和机场补贴 | B156: 0
A157: 民航节能减排 | B157: 0
A158: 通用航空发展 | B158: 0
A159: 征管经费 | B159: 0
A160: 其他民航发展基金支出 | B160: 0
A161: 海南省高等级公路车辆通行附加费对应专项债务收入安排的支出 | B161: 0
A162: 公路建设 | B162: 0
A163: 其他海南省高等级公路车辆通行附加费对应专项债务收入安排的支出 | B163: 0
A164: 政府收费公路专项债券收入安排的支出 | B164: 0
A165: 公路建设 | B165: 0
A166: 其他政府收费公路专项债券收入安排的支出 | B166: 0
A167: 车辆通行费对应专项债务收入安排的支出 | B167: 0
A168: 港口建设费对应专项债务收入安排的支出 | B168: 0
A169: 港口设施 | B169: 0
A170: 航运保障系统建设 | B170: 0
A171: 其他港口建设费对应专项债务收入安排的支出 | B171: 0
A172: 资源勘探工业信息等支出 | B172: 0
A173: 农网还贷资金支出 | B173: 0
A174: 中央农网还贷资金支出 | B174: 0
A175: 地方农网还贷资金支出 | B175: 0
A176: 其他农网还贷资金支出 | B176: 0
A177: 金融支出 | B177: 0
A178: 金融调控支出 | B178: 0
A179: 中央特别国债经营基金支出 | B179: 0
A180: 中央特别国债经营基金财务支出
A181: 其他支出 | B181: 0 | C181: 0
A182: 其他政府性基金及对应专项债务收入安排的支出
A183: 其他政府性基金安排的支出
A184: 其他地方自行试点项目收益专项债券收入安排的支出
A185: 其他政府性基金债务收入安排的支出
A186: 彩票发行销售机构业务费安排的支出 | B186: 0
A187: 福利彩票发行机构的业务费支出 | B187: 0
A188: 体育彩票发行机构的业务费支出 | B188: 0
A189: 福利彩票销售机构的业务费支出 | B189: 0
A190: 体育彩票销售机构的业务费支出 | B190: 0
A191: 彩票兑奖周转金支出 | B191: 0
A192: 彩票发行销售风险基金支出 | B192: 0
A193: 彩票市场调控资金支出 | B193: 0
A194: 其他彩票发行销售机构业务费安排的支出 | B194: 0
A195: 彩票公益金安排的支出
A196: 用于补充全国社会保障基金的彩票公益金支出
A197: 用于社会福利的彩票公益金支出
A198: 用于体育事业的彩票公益金支出
A199: 用于教育事业的彩票公益金支出
A200: 用于红十字事业的彩票公益金支出
... 66 more rows

Sheet 16.市本级政府性基金预算收支平衡表
A1: 2022年攀枝花市市本级政府性基金预算收支平衡表
A2: 单位：万元
A3: 项目 | B3: 预算数 | C3: 项目 | D3: 预算数
A4: 政府性基金预算收入 | B4: 174,000 | C4: 政府性基金预算支出 | D4: 149,100
A5: 政府性基金预算上级补助收入 | C5: 政府性基金预算补助下级支出
A6: 政府性基金预算下级上解收入 | C6: 政府性基金预算上解上级支出
A7: 政府性基金预算上年结余
A8: 政府性基金预算调入资金 | C8: 政府性基金预算调出资金
A9: 一般公共预算调入
A10: 其他调入资金
A11: 债务收入 | C11: 债务还本支出 | D11: 24,900
C12: 地方政府专项债务还本支出 | D12: 24,900
A13: 债务转贷收入 | C13: 债务转贷支出
A14: 地方政府专项债务转贷收入 | C14: 政府性基金预算年终结余
A15: 收入总计 | B15: 174,000 | C15: 支出总计 | D15: 174,000

Sheet 17.市对区政府性基金预算转移支付补助
A1: 2022年攀枝花市政府性基金预算转移支付预算表
F2: 单位：万元
A3: 项 目 | B3: 省对市补助 | C3: 市对区补助
C4: 小计 | D4: 东区 | E4: 西区 | F4: 仁和区
A5: 一、文化旅游体育与传媒支出
A6: 国家电影事业发展专项资金安排的支出
A7: 其他国家电影事业发展专项资金支出
A8: 二、社会保障和就业支出
A9: 大中型水库移民后期扶持基金支出
A10: 移民补助
A11: 基础设施建设和经济发展
A12: 三、城乡社区支出
A13: 农业土地开发资金安排的支出
A14: 四、农林水支出
A15: 大中型水库库区基金安排的支出
A16: 基础设施建设和经济发展
A17: 其他大中型水库库区基金支出
A18: 国家重大水利工程建设基金安排的支出
A19: 三峡后续工作
A20: 五、交通运输支出
A21: 民航发展基金支出
A22: 民航机场建设
A23: 航线和机场补贴
A24: 通用航空发展
A25: 六、其他支出
A26: 彩票公益金安排的支出
A27: 用于社会福利的彩票公益金支出
A28: 用于体育事业的彩票公益金支出
A29: 用于教育事业的彩票公益金支出
A30: 用于残疾人事业的彩票公益金支出
A31: 用于城乡医疗救助的彩票公益金支出
A32: 用于其他社会公益事业的彩票公益金支出
A33: 合计
A34: 注：此表无数据

Sheet 18.市本级预算内基本建设支出
A1: 2022年攀枝花市市本级预算内基本建设支出预算表
B2: 单位：万元
A3: 预算科目 | B3: 预算数
A4: 一、一般公共服务支出
A5: 二、外交支出
A6: 三、国防支出
A7: 四、公共安全支出
A8: 五、教育支出
A9: 六、科学技术支出
A10: 七、文化旅游体育与传媒支出
A11: 八、社会保障和就业支出
A12: 九、卫生健康支出
A13: 十、节能环保支出
A14: 十一、城乡社区支出
A15: 十二、农林水支出
A16: 十三、交通运输支出
A17: 十四、资源勘探工业信息等支出
A18: 十五、商业服务业等支出
A19: 十六、金融支出
A20: 十七、自然资源海洋气象等支出
A21: 十八、住房保障支出
A22: 十九、粮油物资储备支出
A23: 二十、灾害防治及应急管理支出
A24: 二十二、其他支出
A25: 合计
A26: 注：此表无数据

Sheet 19.市本级重大政府投资项目预算表
A1: 2022年攀枝花市市本级重大政府投资项目预算表
C2: 单位：万元
A3: 项目名称 | B3: 预算数 | C3: 项目概况
A6: 注：此表无数据

Sheet 20.全市国有资本经营收入
A1: 2022年攀枝花市国有资本经营预算收入（草案）表
B2: 单位：万元
A3: 预算科目 | B3: 预算数
A4: 利润收入 | B4: 6,165
A5: 烟草企业利润收入
A6: 石油石化企业利润收入
A7: 电力企业利润收入
A8: 电信企业利润收入
A9: 煤炭企业利润收入
A10: 有色冶金采掘企业利润收入
A11: 钢铁企业利润收入
A12: 化工企业利润收入
A13: 运输企业利润收入
A14: 电子企业利润收入
A15: 机械企业利润收入
A16: 投资服务企业利润收入 | B16: 6,165
A17: 纺织轻工企业利润收入
A18: 贸易企业利润收入
A19: 建筑施工企业利润收入
A20: 房地产企业利润收入
A21: 建材企业利润收入
A22: 境外企业利润收入
A23: 对外合作企业利润收入
A24: 医药企业利润收入
A25: 农林牧渔企业利润收入
A26: 邮政企业利润收入
A27: 军工企业利润收入
A28: 转制科研院所利润收入
A29: 地质勘查企业利润收入
A30: 卫生体育福利企业利润收入
A31: 教育文化广播企业利润收入
A32: 科学研究企业利润收入
A33: 机关社团所属企业利润收入
A34: 金融企业利润收入
A35: 其他国有资本经营预算企业利润收入
A36: 股利、股息收入
A37: 国有控股公司股利、股息收入
A38: 国有参股公司股利、股息收入
A39: 金融企业股利、股息收入
A40: 其他国有资本经营预算企业股利、股息收入
A41: 产权转让收入
A42: 国有股减持收入
A43: 国有股权、股份转让收入
A44: 国有独资企业产权转让收入
A45: 金融企业产权转让收入
A46: 其他国有资本经营预算企业产权转让收入
A47: 清算收入
A48: 国有股权、股份清算收入
A49: 国有独资企业清算收入
A50: 其他国有资本经营预算企业清算收入
A51: 其他国有资本经营预算收入
A52: 国有资本经营收入合计 | B52: 6,165

Sheet 21.全市国有资本经营预算支出
A1: 2022年攀枝花市国有资本经营预算支出（草案）表
B2: 单位：万元
A3: 预算科目 | B3: 预算数
A4: 一、社会保障和就业支出
A5: 补充全国社会保障基金
A6: 国有资本经营预算补充社保基金支出
A7: 二、解决历史遗留问题及改革成本支出 | B7: 558
A8: “ 三供一业” 移交补助支出 | B8: 307
A9: 国有企业办职教幼教补助支出
A10: 国有企业退休人员社会化管理补助支出 | B10: 11
A11: 国有企业改革成本支出
A12: 其他解决历史遗留问题及改革成本支出 | B12: 240
A13: 三、国有企业资本金注入 | B13: 265
A14: 国有经济结构调整支出 | B14: 265
A15: 公益性设施投资支出
A16: 前瞻性战略性产业发展支出
A17: 生态环境保护支出
A18: 支持科技进步支出
A19: 保障国家经济安全支出
A20: 对外投资合作支出
A21: 其他国有企业资本金注入
A22: 四、国有企业政策性补贴 | B22: 1,510
A23: 国有企业政策性补贴 | B23: 1,510
A24: 五、金融国有资本经营预算支出
A25: 资本性支出
A26: 改革性支出
A27: 其他金融国有资本经营预算支出
A28: 六、其他国有资本经营预算支出
A29: 国有资本经营预算支出合计 | B29: 2,333

Sheet 22.全市国有资本经营预算收支预算表
A1: 2022年攀枝花市国有资本经营预算收支预算表
C2: 单位：万元
A3: 项目 | B3: 预算数 | C3: 项目 | D3: 预算数
A4: 利润收入 | B4: 6,165 | C4: 社会保障和就业支出
A5: 投资服务企业利润收入 | B5: 6,165 | C5: 补充全国社会保障基金
A6: 房地产企业利润收入 | C6: 国有资本经营预算补充社保基金支出
A7: 建材企业利润收入 | C7: 国有资本经营预算支出 | D7: 2,333
A8: 金融企业利润收入 | C8: 解决历史遗留问题及改革成本支出 | D8: 558
A9: 其他国有资本经营预算企业利润收入 | C9: 厂办大集体改革支出
A10: 股利、股息收入 | C10: "三供一业"移交补助支出 | D10: 307
A11: 国有控股公司股利、股息收入 | C11: 国有企业办职教幼教补助支出
A12: 国有参股公司股利、股息收入 | C12: 国有企业办公共服务机构移交补助支出
A13: 金融企业股利、股息收入 | C13: 国有企业退休人员社会化管理补助支出 | D13: 11
A14: 其他国有资本经营预算企业股利、股息收入 | C14: 国有企业棚户区改造支出
A15: 产权转让收入 | C15: 国有企业改革成本支出
A16: 国有股权、股份转让收入 | C16: 离休干部医药费补助支出
A17: 国有独资企业产权转让收入 | C17: 其他解决历史遗留问题及改革成本支出 | D17: 240
A18: 金融企业产权转让收入 | C18: 国有企业资本金注入 | D18: 265
A19: 其他国有资本经营预算企业产权转让收入 | C19: 国有经济结构调整支出
A20: 清算收入 | C20: 公益性设施投资支出 | D20: 265
A21: 国有股权、股份清算收入 | C21: 前瞻性战略性产业发展支出
A22: 国有独资企业清算收入 | C22: 生态环境保护支出
A23: 其他国有资本经营预算企业清算收入 | C23: 支持科技进步支出
A24: 其他收入 | C24: 保障国家经济安全支出
A25: 其他国有资本经营预算收入 | C25: 对外投资合作支出
C26: 其他国有企业资本金注入
C27: 国有企业政策性补贴(款) | D27: 1,510
C28: 国有企业政策性补贴(项) | D28: 1,510
C29: 金融国有资本经营预算支出
C30: 资本性支出
C31: 改革性支出
C32: 其他金融国有资本经营预算支出
C33: 其他国有资本经营预算支出(款)
C34: 其他国有资本经营预算支出(项)
A35: 国有资本经营预算收入 | B35: =B4+B10+B15+B20+B24 -> 6,165 | C35: 国有资本经营预算支出 | D35: 2,333
A36: 转移性收入 | C36: 转移性支出
A37: 调入资金 | C37: 国有资本经营预算调出资金 | D37: 3,832
A38: 国有资本经营预算上年结余 | C38: 国有资本经营预算年终结余
A39: 收入合计 | B39: =B35+B36+B38+B37 -> 6,165 | C39: 支出总计 | D39: 6,165

Sheet 23.市本级国有资本经营预算收入
A1: 2022年攀枝花市市本级国有资本经营预算收入（草案）表
B2: 单位：万元
A3: 预算科目 | B3: 预算数
A4: 利润收入 | B4: 2,500
A5: 烟草企业利润收入
A6: 石油石化企业利润收入
A7: 电力企业利润收入
A8: 电信企业利润收入
A9: 煤炭企业利润收入
A10: 有色冶金采掘企业利润收入
A11: 钢铁企业利润收入
A12: 化工企业利润收入
A13: 运输企业利润收入
A14: 电子企业利润收入
A15: 机械企业利润收入
A16: 投资服务企业利润收入 | B16: 2,500
A17: 纺织轻工企业利润收入
A18: 贸易企业利润收入
A19: 建筑施工企业利润收入
A20: 房地产企业利润收入
A21: 建材企业利润收入
A22: 境外企业利润收入
A23: 对外合作企业利润收入
A24: 医药企业利润收入
A25: 农林牧渔企业利润收入
A26: 邮政企业利润收入
A27: 军工企业利润收入
A28: 转制科研院所利润收入
A29: 地质勘查企业利润收入
A30: 卫生体育福利企业利润收入
A31: 教育文化广播企业利润收入
A32: 科学研究企业利润收入
A33: 机关社团所属企业利润收入
A34: 金融企业利润收入
A35: 其他国有资本经营预算企业利润收入
A36: 股利、股息收入
A37: 国有控股公司股利、股息收入
A38: 国有参股公司股利、股息收入
A39: 金融企业股利、股息收入
A40: 其他国有资本经营预算企业股利、股息收入
A41: 产权转让收入
A42: 国有股减持收入
A43: 国有股权、股份转让收入
A44: 国有独资企业产权转让收入
A45: 金融企业产权转让收入
A46: 其他国有资本经营预算企业产权转让收入
A47: 清算收入
A48: 国有股权、股份清算收入
A49: 国有独资企业清算收入
A50: 其他国有资本经营预算企业清算收入
A51: 其他国有资本经营预算收入
A52: 国有资本经营收入合计 | B52: 2,500

Sheet 24.市本级国有资本经营预算支出
A1: 2022年攀枝花市市本级国有资本经营预算支出（草案）表
B2: 单位：万元
A3: 预算科目 | B3: 预算数
A4: 一、社会保障和就业支出
A5: 补充全国社会保障基金
A6: 国有资本经营预算补充社保基金支出
A7: 二、解决历史遗留问题及改革成本支出 | B7: 240
A8: “ 三供一业” 移交补助支出
A9: 国有企业办职教幼教补助支出
A10: 国有企业退休人员社会化管理补助支出
A11: 国有企业改革成本支出 | B11: 240
A12: 其他解决历史遗留问题及改革成本支出
A13: 三、国有企业资本金注入
A14: 国有经济结构调整支出
A15: 公益性设施投资支出
A16: 前瞻性战略性产业发展支出
A17: 生态环境保护支出
A18: 支持科技进步支出
A19: 保障国家经济安全支出
A20: 对外投资合作支出
A21: 其他国有企业资本金注入
A22: 四、国有企业政策性补贴 | B22: 1,510
A23: 国有企业政策性补贴 | B23: 1,510
A24: 五、金融国有资本经营预算支出
A25: 资本性支出
A26: 改革性支出
A27: 其他金融国有资本经营预算支出
A28: 六、其他国有资本经营预算支出
A29: 国有资本经营预算支出合计 | B29: 1,750

Sheet 25.市本级国有资本经营预算收支预算表
A1: 2022年攀枝花市市本级国有资本经营预算收支预算表表
C2: 单位：万元
A3: 项目 | B3: 预算数 | C3: 项目 | D3: 预算数
A4: 利润收入 | B4: 2,500 | C4: 社会保障和就业支出
A5: 投资服务企业利润收入 | B5: 2,500 | C5: 补充全国社会保障基金
A6: 房地产企业利润收入 | C6: 国有资本经营预算补充社保基金支出
A7: 建材企业利润收入 | C7: 国有资本经营预算支出 | D7: 1,750
A8: 金融企业利润收入 | C8: 解决历史遗留问题及改革成本支出 | D8: 240
A9: 其他国有资本经营预算企业利润收入 | C9: 厂办大集体改革支出
A10: 股利、股息收入 | C10: "三供一业"移交补助支出
A11: 国有控股公司股利、股息收入 | C11: 国有企业办职教幼教补助支出
A12: 国有参股公司股利、股息收入 | C12: 国有企业办公共服务机构移交补助支出
A13: 金融企业股利、股息收入 | C13: 国有企业退休人员社会化管理补助支出
A14: 其他国有资本经营预算企业股利、股息收入 | C14: 国有企业棚户区改造支出
A15: 产权转让收入 | C15: 国有企业改革成本支出 | D15: 240
A16: 国有股权、股份转让收入 | C16: 离休干部医药费补助支出
A17: 国有独资企业产权转让收入 | C17: 其他解决历史遗留问题及改革成本支出
A18: 金融企业产权转让收入 | C18: 国有企业资本金注入
A19: 其他国有资本经营预算企业产权转让收入 | C19: 国有经济结构调整支出
A20: 清算收入 | C20: 公益性设施投资支出
A21: 国有股权、股份清算收入 | C21: 前瞻性战略性产业发展支出
A22: 国有独资企业清算收入 | C22: 生态环境保护支出
A23: 其他国有资本经营预算企业清算收入 | C23: 支持科技进步支出
A24: 其他收入 | C24: 保障国家经济安全支出
A25: 其他国有资本经营预算收入 | C25: 对外投资合作支出
C26: 其他国有企业资本金注入
C27: 国有企业政策性补贴(款) | D27: 1,510
C28: 国有企业政策性补贴(项) | D28: 1,510
C29: 金融国有资本经营预算支出
C30: 资本性支出
C31: 改革性支出
C32: 其他金融国有资本经营预算支出
C33: 其他国有资本经营预算支出(款)
C34: 其他国有资本经营预算支出(项)
A35: 国有资本经营预算收入 | B35: 2,500 | C35: 国有资本经营预算支出 | D35: 1,750
A36: 转移性收入 | C36: 转移性支出
A37: 调入资金 | C37: 国有资本经营预算调出资金 | D37: 750
A38: 国有资本经营预算上年结余 | C38: 国有资本经营预算年终结余
A39: 收入合计 | B39: =B35+B36+B37+B38 -> 2,500 | C39: 支出总计 | D39: 2,500

Sheet 26.市对区国有资本经营预算转移支付补助
A1: 2022年攀枝花市国有资本经营预算转移支付预算表
E2: 单位：万元
A3: 项 目 | B3: 省对市补助 | C3: 市对区补助
C4: 小计 | D4: 东区 | E4: 西区 | F4: 仁和区
A5: 国有企业退休人员社会化管理补助资金
A6: 工业企业结构调整专项奖补资金
A7: 国有企业职工家属区“三供一业”分离移交补助资金
A8: 补助下级支出合计
A9: 注：此表无数据

Sheet 27.全市社会保险基金收入预算表
A1: 2022年攀枝花市全市及市本级社会保险基金收入预算表
C2: 单位：万元
A3: 项目 | B3: 预算数 | C3: 简要说明
A4: 企业职工基本养老保险基金收入 | C4: 企业职工养老保险实行的是省级统筹。
A5: 企业职工基本养老保险费收入
A6: 企业职工基本养老保险基金财政补贴收入
A7: 企业职工基本养老保险基金利息收入
A8: 企业职工基本养老保险基金委托投资收益
A9: 转移收入
A10: 其他企业职工基本养老保险基金收入
A11: 其他企业职工基本养老保险基金收入
A12: 失业保险基金收入
A13: 失业保险费收入 | B13: =SUM(B14:B18) -> 13,721
A14: 失业保险基金财政补贴收入 | B14: 13,329
A15: 失业保险基金利息收入
A16: 失业保险基金转移收入 | B16: 198
A17: 其他失业保险基金收入 | B17: 115
A18: 失业保险基金上级补助收入 | B18: 79
A19: 城镇职工基本医疗保险基金收入 | B19: =SUM(B20:B24) -> 212,367
A20: 城镇职工基本医疗保险费收入 | B20: 209,140
A21: 城镇职工基本医疗保险基金财政补贴收入 | B21: 1,000
A22: 城镇职工基本医疗保险基金利息收入 | B22: 1,955
A23: 城镇职工基本医疗保险基金转移收入 | B23: 272
A24: 其他城镇职工基本医疗保险基金收入
A25: 工伤保险基金收入 | B25: =SUM(B26:B29) -> 22,275
A26: 工伤保险费收入 | B26: 22,105
A27: 工伤保险基金财政补贴收入
A28: 工伤保险基金利息收入 | B28: 130
A29: 其他工伤保险基金收入 | B29: 40
A30: 城乡居民基本养老保险基金收入 | B30: =SUM(B31:B37) -> 19,600
A31: 城乡居民基本养老保险基金缴费收入 | B31: 5,530
A32: 城乡居民基本养老保险基金财政补贴收入 | B32: 11,387
A33: 城乡居民基本养老保险基金利息收入 | B33: 340
A34: 城乡居民基本养老保险基金委托投资收益 | B34: 2,193
A35: 城乡居民基本养老保险基金集体补助收入
A36: 城乡居民基本养老保险基金转移收入 | B36: 100
A37: 其他城乡居民基本养老保险基金收入 | B37: 50
A38: 机关事业单位基本养老保险基金收入 | C38: 机关事业单位养老保险实行的是省级统筹。
A39: 机关事业单位基本养老保险费收入
A40: 机关事业单位基本养老保险基金财政补助收入
A41: 机关事业单位基本养老保险基金利息收入
A42: 机关事业单位基本养老保险基金委托投资收益
A43: 其他机关事业单位基本养老保险基金收入
A44: 城乡居民基本医疗保险基金收入 | B44: =SUM(B45:B48) -> 69,659
A45: 城乡居民基本医疗保险基金缴费收入 | B45: 26,775
A46: 城乡居民基本医疗保险基金财政补贴收入 | B46: 42,184
A47: 城乡居民基本医疗保险基金利息收入 | B47: 700
A48: 其他城乡居民基本医疗保险基金收入
A49: 社会保险基金收入合计 | B49: 337,622

Sheet 28.全市社会保险基金支出预算表
A1: 2022年攀枝花市全市及市本级社会保险基金支出预算表
C2: 单位：万元
A3: 项目 | B3: 预算数 | C3: 简要说明
A4: 企业职工基本养老保险基金支出 | C4: 企业职工养老保险实行的是省级统筹
A5: 基本养老金
A6: 医疗补助金
A7: 丧葬抚恤补助
A8: 转移支出
A9: 其他企业职工基本养老保险基金支出
A10: 企业职工基本养老保险上解上级支出
A11: 失业保险基金支出 | B11: =SUM(B12:B21) -> 10,248
A12: 失业保险金 | B12: 6,316
A13: 医疗保险费 | B13: 2,645
A14: 丧葬抚恤补助 | B14: 3
A15: 职业培训和职业介绍补贴
A16: 其他费用支出
A17: 技能提升补贴支出 | B17: 207
A18: 稳岗补贴支出
A19: 转移支出 | B19: 11
A20: 其他失业保险基金支出
A21: 失业保险基金上解上级支出 | B21: 1,066
A22: 城镇职工基本医疗保险基金支出 | B22: =SUM(B23:B26) -> 198,552
A23: 城镇职工基本医疗保险统筹基金待遇支出 | B23: 118,808
A24: 城镇职工基本医疗保险个人账户基金待遇支出 | B24: 75,550
A25: 转移支出 | B25: 245
A26: 其他城镇职工基本医疗保险基金支出 | B26: 3,950
A27: 工伤保险基金支出 | B27: =SUM(B28:B32) -> 24,105
A28: 工伤保险待遇 | B28: 21,658
A29: 劳动能力鉴定支出 | B29: 71
A30: 工伤预防费用支出 | B30: 560
A31: 其他工伤保险基金支出
A32: 上解上级支出 | B32: 1,816
A33: 城乡居民基本养老保险基金支出 | B33: =SUM(B34:B38) -> 12,227
A34: 基础养老金支出 | B34: 10,142
A35: 个人账户养老金支出 | B35: 1,685
A36: 丧葬抚恤补助支出 | B36: 395
A37: 转移支出 | B37: 5
A38: 其他城乡居民基本养老保险基金支出
A39: 机关事业单位基本养老保险基金支出 | C39: 机关事业单位养老保险实行的是省级统筹
A40: 基本养老金支出
A41: 其他机关事业单位基本养老保险基金支出
A42: 城乡居民基本医疗保险基金支出 | B42: =SUM(B43:B45) -> 67,316
A43: 城乡居民基本医疗保险基金医疗待遇支出 | B43: 61,380
A44: 大病医疗保险支出 | B44: 3,735
A45: 其他城乡居民基本医疗保险基金支出 | B45: 2,200
A46: 社会保险基金支出合计 | B46: =B11+B22+B27+B33+B42 -> 312,448

Sheet 29.社会保险平衡表
A1: 2022年攀枝花市及市本级社会保险基金预算平衡表
F2: 单位：万元
A3: 项目 | B3: 全市 | C3: 市级 | D3: 项目 | E3: 全市 | F3: 市级
A4: 社会保险基金收入 | B4: 337,622 | C4: 337,622 | D4: 社会保险基金支出 | E4: 312,448 | F4: 312,448
A5: 企业职工基本养老保险基金收入 | D5: 企业职工基本养老保险基金支出
A6: 城乡居民基本养老保险基金收入 | B6: 19,600 | C6: 19,600 | D6: 城乡居民基本养老保险基金支出 | E6: 12,227 | F6: 12,227
A7: 职工基本医疗保险(含生育保险）基金收入 | B7: 212,367 | C7: 212,367 | D7: 职工基本医疗保险(含生育保险）基金支出 | E7: 198,552 | F7: 198,552
A8: 城乡居民基本医疗保险基金收入 | B8: 69,659 | C8: 69,659 | D8: 城乡居民基本医疗保险基金支出 | E8: 67,316 | F8: 67,316
A9: 工伤保险基金收入 | B9: 22,275 | C9: 22,275 | D9: 工伤保险基金支出 | E9: 24,105 | F9: 24,105
A10: 失业保险基金收入 | B10: 13,721 | C10: 13,721 | D10: 失业保险基金支出 | E10: 10,248 | F10: 10,248
A11: 上年结余收入 | B11: 235,865 | C11: 235,865 | D11: 年终结余 | E11: 261,039 | F11: 261,039
A12: 社会保险基金总收入 | B12: 573,487 | C12: 573,487 | D12: 社会保险基金总支出 | E12: 573,487 | F12: 573,487

Sheet 30.四本预算收入
A1: 2022年攀枝花市“四本预算”收入预算表
B2: 单位：万元
A3: 项目 | B3: 预算数
A4: 一、全市一般公共预算收入 | B4: 902,845
A5: 市级收入 | B5: 433,500
A6: 县级收入 | B6: =B4-B5 -> 469,345
A7: 二、全市政府性基金预算收入 | B7: 429,000
A8: 市级收入 | B8: 174,000
A9: 县级收入 | B9: =B7-B8 -> 255,000
A10: 三、全市国有资本经营预算收入 | B10: 6,165
A11: 市级收入 | B11: 2,500
A12: 县级收入 | B12: =B10-B11 -> 3,665
A13: 四、全市社会保险基金预算收入 | B13: 337,622
A15: 市级收入 | B15: =B5+B8+B11+B13 -> 947,622
A16: 县级收入 | B16: =B6+B9+B12 -> 728,010

Sheet 31.四本预算支出
A1: 2022年攀枝花市“四本预算”支出预算表
B2: 单位：万元
A3: 项目 | B3: 预算数
A4: 一、全市一般公共预算支出 | B4: 1,283,755
A5: 市级支出 | B5: 662,150
A6: 县级支出 | B6: =B4-B5 -> 621,605
A7: 二、全市政府性基金预算支出 | B7: 370,742
A8: 市级支出 | B8: 149,100
A9: 县级支出 | B9: =B7-B8 -> 221,642
A10: 三、全市国有资本经营预算支出 | B10: 2,333
A11: 市级支出 | B11: 1,750
A12: 县级支出 | B12: =B10-B11 -> 583
A13: 四、全市社会保险基金预算支出 | B13: 312,448
A15: 市级支出 | B15: =B5+B8+B11+B13 -> 1,125,448
A16: 县级支出 | B16: =B6+B9+B12 -> 843,830

Sheet 32.市本级债务还款计划表
A1: 2022年攀枝花市市本级地方政府债务还款计划表
B2: 单位：万元
A3: 项 目 | B3: 金 额
A4: 一、2022年债务到期额 | B4: 176,955
A5: 其中：一般债券 | B5: 146,650
A6: 专项债券 | B6: 24,900
A7: 非债券形式债务 | B7: 5,405
A8: 二、2022年计划还款额 | B8: 176,955
A9: 其中：一般债券 | B9: 146,650
A10: 专项债券 | B10: 24,900
A11: 非债券形式债务 | B11: 5,405
A12: 说明：还款金额来源为再融资债券、一般公共预算收入、政府性基金预算收入等

Sheet 33.攀枝花市分地区政府债务十年到期情况表
A1: 攀枝花市分地区政府债务十年到期情况表
K2: 单位：万元
A3: 地 区 | B3: 2022年 | C3: 2023年 | D3: 2024年 | E3: 2025年 | F3: 2026年 | G3: 2027年 | H3: 2028年 | I3: 2029年 | J3: 2030年 | K3: 2031年
A4: 市本级 | B4: 176,955 | C4: 133,443 | D4: 158,250 | E4: 36,230 | F4: 56,188 | G4: 70,772 | H4: 38,912 | I4: 50,500 | J4: 41,230 | K4: 47,570
A5: 东 区 | B5: 22,214 | C5: 8,741 | D5: 19,100 | E5: 25,252 | F5: 12,700 | G5: 28,240 | H5: 7,975 | I5: 233 | J5: 13,044 | K5: 15,437
A6: 西 区 | B6: 21,988 | C6: 23,959 | D6: 10,170 | E6: 27,659 | F6: 3,704 | G6: 6,636 | H6: 6,540 | I6: 6,038 | J6: 11,620 | K6: 8,537
A7: 仁和区 | B7: 38,510 | C7: 81,987 | D7: 94,370 | E7: 15,940 | F7: 8,070 | G7: 12,364 | H7: 9,870 | I7: 6,610 | J7: 19,492 | K7: 12,300
A8: 米易县 | B8: 35,070 | C8: 21,610 | D8: 43,470 | E8: 14,438 | F8: 38,765 | G8: 18,273 | H8: 15,416 | I8: 3,515 | J8: 8,000 | K8: 12,540
A9: 盐边县 | B9: 19,280 | C9: 43,053 | D9: 35,764 | E9: 14,878 | F9: 8,407 | G9: 9,435 | H9: 18,020 | I9: 8,941 | J9: 3,000 | K9: 5,130
A10: 合 计 | B10: 314,017 | C10: 312,793 | D10: 361,124 | E10: 134,397 | F10: 127,834 | G10: 145,720 | H10: 96,733 | I10: 75,837 | J10: 96,386 | K10: =SUM(K4:K9) -> 101,514
